Workbook

Sheet adakox
A1: Data biegu | B1: Przebiegnięte km | C1: Czas biegu | D1: Średnia prędkość | E1: Miesiąc | F1: Dni tygodnia | G1: Łącznie przebiegniętych kilometrów | H1: z 6259,6 km
A2: 23-03-2013 | B2: 2.5 | E2: Marzec | F2: Poniedziałek | G2: =SUM(B2:B21) -> 8.74
A3: 24-03-2013 | B3: 2.96 | C3: 19m:30s | D3: 6:35 min/km | E3: Marzec | F3: Wtorek
A4: 27-03-2013 | B4: 3.28 | C4: 22m:00s | D4: 6:42 min/km | E4: Marzec | F4: Środa
F5: Czwartek
F6: Piątek
F7: Sobota
F8: Niedziela

Sheet andrzej194
A1: Data biegu | B1: Przebiegnięte km | C1: Czas biegu | D1: Średnia prędkość | E1: Miesiąc | F1: Dni tygodnia | G1: Łącznie przebiegniętych kilometrów | H1: z 6259,6 km
A2: 27-02-2013 | B2: 9.47 | C2: 1g:03m:09s | D2: 6:40 min/km | E2: Luty | F2: Poniedziałek | G2: =SUM(B2:B23) -> 93.88
A3: 4-03-2013 | B3: 9.54 | C3: 56m:04s | D3: 5:53 min/km | E3: Marzec | F3: Wtorek
A4: 5-03-2013 | B4: 10.76 | C4: 1g:01m:45s | D4: 5:44 min/km | E4: Marzec | F4: Środa
A5: 8-03-2013 | B5: 3 | C5: 15m:36s | D5: 5:12 min/km | E5: Marzec | F5: Czwartek
A6: 11-03-2013 | B6: 11.48 | C6: 1g:09m:15s | D6: 6:02 min/km | E6: Marzec | F6: Piątek
A7: 12-03-2013 | B7: 11.72 | C7: 1g:08m:57s | D7: 5:53 min/km | E7: Marzec | F7: Sobota
A8: 13-03-2013 | B8: 11.9 | C8: 1g:07m:54s | D8: 5:42 min/km | E8: Marzec | F8: Niedziela
A9: 15-03-2013 | B9: 2.95 | C9: 14m:31s | D9: 4:55 min/km | E9: Marzec
A10: 16-03-2013 | B10: 11 | C10: 1g:02m:56s | D10: 5:43 min/km | E10: Marzec
A11: 18-03-2013 | B11: 12.06 | C11: 1g:13m:59s | D11: 6:08 min/km | E11: Marzec

Sheet aurevoir
A1: Data biegu | B1: Przebiegnięte km | C1: Czas biegu | D1: Średnia prędkość | E1: Miesiąc | F1: Dni tygodnia | G1: Łącznie przebiegniętych kilometrów | H1: z 6259,6 km
A2: 15-03-2013 | B2: 3.32 | E2: Marzec | F2: Poniedziałek | G2: =SUM(B2:B17) -> 3.32
F3: Wtorek
F4: Środa
F5: Czwartek
F6: Piątek
F7: Sobota
F8: Niedziela

Sheet bartov
A1: Data biegu | B1: Przebiegnięte km | C1: Czas biegu | D1: Średnia prędkość | E1: Miesiąc | F1: Dni tygodnia | G1: Łącznie przebiegniętych kilometrów | H1: z 6259,6 km
A2: 1-03-2013 | B2: 3 | E2: Marzec | F2: Poniedziałek | G2: =SUM(B2:B24) -> 106.5
A3: 2-03-2013 | B3: 5.5 | E3: Marzec | F3: Wtorek
A4: 5-03-2013 | B4: 8 | E4: Marzec | F4: Środa
A5: 12-03-2013 | B5: 32.5 | E5: Marzec | F5: Czwartek
A6: 18-03-2013 | B6: 27.5 | E6: Marzec | F6: Piątek
A7: 2-04-2013 | B7: 30 | E7: Kwiecień | F7: Sobota
F8: Niedziela

Sheet BeSmarter
A1: Data biegu | B1: Przebiegnięte km | C1: Czas biegu | D1: Średnia prędkość | E1: Miesiąc | F1: Dni tygodnia | G1: Łącznie przebiegniętych kilometrów | H1: z 6259,6 km
A2: 8-03-2013 | B2: 2.8 | E2: Marzec | F2: Poniedziałek | G2: =SUM(B2:B22) -> 2.8
F3: Wtorek
F4: Środa
F5: Czwartek
F6: Piątek
F7: Sobota
F8: Niedziela

Sheet blackgoku
A1: Data biegu | B1: Przebiegnięte km | C1: Czas biegu | D1: Średnia prędkość | E1: Miesiąc | F1: Dni tygodnia | G1: Łącznie przebiegniętych kilometrów | H1: z 6259,6 km
A2: 30-03-2013 | B2: 2 | E2: Marzec | F2: Poniedziałek | G2: =SUM(B2:B22) -> 2
F3: Wtorek
F4: Środa
F5: Czwartek
F6: Piątek
F7: Sobota
F8: Niedziela

Sheet Caroo
A1: Data biegu | B1: Przebiegnięte km | C1: Czas biegu | D1: Średnia prędkość | E1: Miesiąc | F1: Dni tygodnia | G1: Łącznie przebiegniętych kilometrów | H1: z 6259,6 km
A2: 27-02-2013 | B2: 8.13 | E2: Luty | F2: Poniedziałek | G2: =SUM(B2:B16) -> 20.53
A3: 3-03-2013 | B3: 12.4 | E3: Marzec | F3: Wtorek
F4: Środa
F5: Czwartek
F6: Piątek
F7: Sobota
F8: Niedziela

Sheet ciepol
A1: Data biegu | B1: Przebiegnięte km | C1: Czas biegu | D1: Średnia prędkość | E1: Miesiąc | F1: Dni tygodnia | G1: Łącznie przebiegniętych kilometrów | H1: z 6259,6 km
A2: 27-02-2013 | B2: 10 | E2: Luty | F2: Poniedziałek | G2: =SUM(B2:B24) -> 66
A3: 4-03-2013 | B3: 10 | E3: Marzec | F3: Wtorek
A4: 7-03-2013 | B4: 10 | E4: Marzec | F4: Środa
A5: 10-03-2013 | B5: 16 | E5: Marzec | F5: Czwartek
A6: 18-03-2013 | B6: 10 | E6: Marzec | F6: Piątek
A7: 3-04-2013 | B7: 10 | E7: Kwiecień | F7: Sobota
F8: Niedziela

Sheet copol1
A1: Data biegu | B1: Przebiegnięte km | C1: Czas biegu | D1: Średnia prędkość | E1: Miesiąc | F1: Dni tygodnia | G1: Łącznie przebiegniętych kilometrów | H1: z 6259,6 km
A2: 10-03-2013 | B2: 7.2 | E2: Marzec | F2: Poniedziałek | G2: =SUM(B2:B20) -> 14.4
A3: 28-03-2013 | B3: 7.2 | E3: Marzec | F3: Wtorek
F4: Środa
F5: Czwartek
F6: Piątek
F7: Sobota
F8: Niedziela

Sheet Cybe
A1: Data biegu | B1: Przebiegnięte km | C1: Czas biegu | D1: Średnia prędkość | E1: Miesiąc | F1: Dni tygodnia | G1: Łącznie przebiegniętych kilometrów | H1: z 6259,6 km
A2: 4-03-2013 | B2: 5.4 | E2: Marzec | F2: Poniedziałek | G2: =SUM(B2:B25) -> 13.22
A3: 6-03-2013 | B3: 3.8 | C3: 26m:25s | D3: 8:18 min/km | E3: Marzec | F3: Wtorek
A4: 8-03-2013 | B4: 4.02 | C4: 28m:03s | D4: 6:59 min/km | E4: Marzec | F4: Środa
F5: Czwartek
F6: Piątek
F7: Sobota
F8: Niedziela

Sheet cycki
A1: Data biegu | B1: Przebiegnięte km | C1: Czas biegu | D1: Średnia prędkość | E1: Miesiąc | F1: Dni tygodnia | G1: Łącznie przebiegniętych kilometrów | H1: z 6259,6 km
A2: 4-03-2013 | B2: 3 | E2: Marzec | F2: Poniedziałek | G2: =SUM(B2:B21) -> 3
F3: Wtorek
F4: Środa
F5: Czwartek
F6: Piątek
F7: Sobota
F8: Niedziela

Sheet dadzbog
A1: Data biegu | B1: Przebiegnięte km | C1: Czas biegu | D1: Średnia prędkość | E1: Miesiąc | F1: Dni tygodnia | G1: Łącznie przebiegniętych kilometrów | H1: z 6259,6 km
A2: 28-02-2013 | B2: 3.9 | E2: Luty | F2: Poniedziałek | G2: =SUM(B2:B25) -> 43.21
A3: 6-03-2013 | B3: 8.04 | C3: 44m:24s | D3: 5:31 min/km | E3: Marzec | F3: Wtorek
A4: 13-03-2013 | B4: 7.13 | C4: 37m:23s | D4: 5:15 min/km | E4: Marzec | F4: Środa
A5: 20-03-2013 | B5: 7.02 | C5: 36m:08s | D5: 5:09 min/km | E5: Marzec | F5: Czwartek
A6: 20-03-2013 | B6: 0.83 | C6: 6m:20s | D6: 7:36 min/km | E6: Marzec | F6: Piątek
A7: 20-03-2013 | B7: 12.46 | C7: 1g:07m:34s | D7: 5:25 min/km | E7: Marzec | F7: Sobota
A8: 3-04-2013 | B8: 3.83 | C8: 12m:14s | D8: 4:25 min/km | E8: Kwiecień | F8: Niedziela

Sheet Dariel
A1: Data biegu | B1: Przebiegnięte km | C1: Czas biegu | D1: Średnia prędkość | E1: Miesiąc | F1: Dni tygodnia | G1: Łącznie przebiegniętych kilometrów | H1: z 6259,6 km
A2: 17-03-2013 | B2: 3.55 | C2: 22m:10s | D2: 6:15 min/km | E2: Marzec | F2: Poniedziałek | G2: =SUM(B2:B18) -> 19.24
A3: 29-03-2013 | B3: 15.69 | C3: 1g:49m:49s | D3: 7:00 min/km | E3: Marzec | F3: Wtorek
F4: Środa
F5: Czwartek
F6: Piątek
F7: Sobota
F8: Niedziela

Sheet Demand
A1: Data biegu | B1: Przebiegnięte km | C1: Czas biegu | D1: Średnia prędkość | E1: Miesiąc | F1: Dni tygodnia | G1: Łącznie przebiegniętych kilometrów | H1: z 6259,6 km
A2: 10-03-2013 | B2: 16.2 | E2: Marzec | F2: Poniedziałek | G2: =SUM(B2:B23) -> 16.2
F3: Wtorek
F4: Środa
F5: Czwartek
F6: Piątek
F7: Sobota
F8: Niedziela

Sheet Deykun
A1: Data biegu | B1: Przebiegnięte km | C1: Czas biegu | D1: Średnia prędkość | E1: Miesiąc | F1: Dni tygodnia | G1: Łącznie przebiegniętych kilometrów | H1: z 6259,6 km
A2: 5-03-2013 | B2: 2.13 | E2: Marzec | F2: Poniedziałek | G2: =SUM(B2:B26) -> 13.21
A3: 9-03-2013 | B3: 3.24 | E3: Marzec | F3: Wtorek
A4: 15-03-2013 | B4: 4.94 | E4: Marzec | F4: Środa
A5: 18-03-2013 | B5: 1.45 | E5: Marzec | F5: Czwartek
A6: 20-03-2013 | B6: 1.45 | E6: Marzec | F6: Piątek
F7: Sobota
F8: Niedziela

Sheet dimer
A1: Data biegu | B1: Przebiegnięte km | C1: Czas biegu | D1: Średnia prędkość | E1: Miesiąc | F1: Dni tygodnia | G1: Łącznie przebiegniętych kilometrów | H1: z 6259,6 km
A2: 27-02-2013 | B2: 8.79 | C2: 51m:55s | D2: 5:54 min/km | E2: Luty | F2: Poniedziałek | G2: =SUM(B2:B23) -> 116.21
A3: 28-02-2013 | B3: 8.71 | C3: 48m:47s | D3: 5:36 min/km | E3: Luty | F3: Wtorek
A4: 2-03-2013 | B4: 10.28 | C4: 56m:33s | D4: 5:30 min/km | E4: Marzec | F4: Środa
A5: 3-03-2013 | B5: 18.66 | C5: 1g:48m:50s | D5: 5:50 min/km | E5: Marzec | F5: Czwartek
A6: 6-03-2013 | B6: 18.8 | C6: 2g:02m:24s | D6: 6:31 min/km | E6: Marzec | F6: Piątek
A7: 12-03-2013 | B7: 8.68 | E7: Marzec | F7: Sobota
A8: 15-03-2013 | B8: 10.28 | E8: Marzec | F8: Niedziela
A9: 17-03-2013 | B9: 20.92 | C9: 2g:00m:58s | D9: 5:47 min/km | E9: Marzec
A10: 23-03-2013 | B10: 11.09 | C10: 1g:05m:35s | D10: 5:55 min/km | E10: Marzec

Sheet dptd
A1: Data biegu | B1: Przebiegnięte km | C1: Czas biegu | D1: Średnia prędkość | E1: Miesiąc | F1: Dni tygodnia | G1: Łącznie przebiegniętych kilometrów | H1: z 6259,6 km
A2: 5-03-2013 | B2: 6.79 | E2: Marzec | F2: Poniedziałek | G2: =SUM(B2:B24) -> 6.79
F3: Wtorek
F4: Środa
F5: Czwartek
F6: Piątek
F7: Sobota
F8: Niedziela

Sheet drain_pipes
A1: Data biegu | B1: Przebiegnięte km | C1: Czas biegu | D1: Średnia prędkość | E1: Miesiąc | F1: Dni tygodnia | G1: Łącznie przebiegniętych kilometrów | H1: z 6259,6 km
A2: 7-03-2013 | B2: 3.59 | C2: 18m:48s | D2: 5:14 min/km | E2: Marzec | F2: Poniedziałek | G2: =SUM(B2:B26) -> 14.99
A3: 10-03-2013 | B3: 5.83 | C3: 32m:59s | D3: 5:39 min/km | E3: Marzec | F3: Wtorek
A4: 16-03-2013 | B4: 5.57 | C4: 28m:53s | D4: 5:11 min/km | E4: Marzec | F4: Środa
F5: Czwartek
F6: Piątek
F7: Sobota
F8: Niedziela

Sheet DuDru
A1: Data biegu | B1: Przebiegnięte km | C1: Czas biegu | D1: Średnia prędkość | E1: Miesiąc | F1: Dni tygodnia | G1: Łącznie przebiegniętych kilometrów | H1: z 6259,6 km
A2: 4-03-2013 | B2: 5.67 | C2: 31m:45s | D2: 5:36 min/km | E2: Marzec | F2: Poniedziałek | G2: =SUM(B2:B20) -> 5.67
F3: Wtorek
F4: Środa
F5: Czwartek
F6: Piątek
F7: Sobota
F8: Niedziela

Sheet Elveen
A1: Data biegu | B1: Przebiegnięte km | C1: Czas biegu | D1: Średnia prędkość | E1: Miesiąc | F1: Dni tygodnia | G1: Łącznie przebiegniętych kilometrów | H1: z 6259,6 km
A2: 27-02-2013 | B2: 8.5 | E2: Luty | F2: Poniedziałek | G2: =SUM(B2:B28) -> 185.92
A3: 1-03-2013 | B3: 9.7 | E3: Marzec | F3: Wtorek
A4: 3-03-2013 | B4: 20.2 | E4: Marzec | F4: Środa
A5: 5-03-2013 | B5: 9.6 | E5: Marzec | F5: Czwartek
A6: 6-03-2013 | B6: 8.5 | E6: Marzec | F6: Piątek
A7: 8-03-2013 | B7: 8.4 | E7: Marzec | F7: Sobota
A8: 14-03-2013 | B8: 5.5 | E8: Marzec | F8: Niedziela
A9: 16-03-2013 | B9: 6.7 | E9: Marzec
A10: 17-03-2013 | B10: 12.2 | E10: Marzec
A11: 19-03-2013 | B11: 8.4 | E11: Marzec
A12: 22-03-2013 | B12: 6.2 | E12: Marzec
A13: 24-03-2013 | B13: 21.01 | E13: Marzec
A14: 27-03-2013 | B14: 8.4 | E14: Marzec
A15: 28-03-2013 | B15: 8.1 | E15: Marzec
A16: 30-03-2013 | B16: 19.5 | E16: Marzec
A17: 1-04-2013 | B17: 7.01 | E17: Kwiecień
A18: 3-04-2013 | B18: 8.4 | E18: Kwiecień
A19: 5-04-2013 | B19: 9.6 | E19: Kwiecień

Sheet emdey
A1: Data biegu | B1: Przebiegnięte km | C1: Czas biegu | D1: Średnia prędkość | E1: Miesiąc | F1: Dni tygodnia | G1: Łącznie przebiegniętych kilometrów | H1: z 6259,6 km
A2: 6-03-2013 | B2: 7.14 | E2: Marzec | F2: Poniedziałek | G2: =SUM(B2:B30) -> 7.14
F3: Wtorek
F4: Środa
F5: Czwartek
F6: Piątek
F7: Sobota
F8: Niedziela

Sheet ericcartman
A1: Data biegu | B1: Przebiegnięte km | C1: Czas biegu | D1: Średnia prędkość | E1: Miesiąc | F1: Dni tygodnia | G1: Łącznie przebiegniętych kilometrów | H1: z 6259,6 km
A2: 4-03-2013 | B2: 19 | E2: Marzec | F2: Poniedziałek | G2: =SUM(B2:B21) -> 24
A3: 3-04-2013 | B3: 5 | E3: Kwiecień | F3: Wtorek
F4: Środa
F5: Czwartek
F6: Piątek
F7: Sobota
F8: Niedziela

Sheet evenstar
A1: Data biegu | B1: Przebiegnięte km | C1: Czas biegu | D1: Średnia prędkość | E1: Miesiąc | F1: Dni tygodnia | G1: Łącznie przebiegniętych kilometrów | H1: z 6259,6 km
A2: 2-03-2013 | B2: 2.2 | E2: Marzec | F2: Poniedziałek | G2: =SUM(B2:B25) -> 5.4
A3: 1-04-2013 | B3: 3.2 | E3: Kwiecień | F3: Wtorek
F4: Środa
F5: Czwartek
F6: Piątek
F7: Sobota
F8: Niedziela

Sheet Faraleith
A1: Data biegu | B1: Przebiegnięte km | C1: Czas biegu | D1: Średnia prędkość | E1: Miesiąc | F1: Dni tygodnia | G1: Łącznie przebiegniętych kilometrów | H1: z 6259,6 km
A2: 27-02-2013 | B2: 8.86 | C2: 52m:10s | D2: 5:53 min/km | E2: Luty | F2: Poniedziałek | G2: =SUM(B2:B29) -> 91.5
A3: 6-03-2013 | B3: 7.61 | C3: 49m:14s | D3: 6:28 min/k | E3: Marzec | F3: Wtorek
A4: 8-03-2013 | B4: 8.42 | C4: 29m:10s | D4: 6:03 min/km | E4: Marzec | F4: Środa
A5: 10-03-2013 | B5: 10.24 | C5: 1g:03m:36s | D5: 6:13 min/km | E5: Marzec | F5: Czwartek
A6: 13-03-2013 | B6: 4.25 | C6: 28m:59s | D6: 6:49 min/km | E6: Marzec | F6: Piątek
A7: 17-03-2013 | B7: 7.96 | C7: 54m:49s | D7: 6:53 min/km | E7: Marzec | F7: Sobota
A8: 20-03-2013 | B8: 5 | C8: 35m:33s | D8: 7:07 min/km | E8: Marzec | F8: Niedziela
A9: 22-03-2013 | B9: 5.3 | C9: 37m:38s | D9: 7:06 min/km | E9: Marzec
A10: 24-03-2013 | B10: 11.19 | C10: 1g:10m:22s | D10: 6:17 min/km | E10: Marzec
A11: 25-03-2013 | B11: 6.96 | C11: 47m:10s | D11: 6:47 min/km | E11: Marzec
A12: 29-03-2013 | B12: 3.67 | C12: 22m:46s | D12: 6:12 min/km | E12: Marzec
A13: 30-03-2013 | B13: 7.17 | C13: 42m:04s | D13: 5:52 min/km | E13: Marzec
A14: 5-04-2013 | B14: 4.87 | E14: Kwiecień

Sheet fisti
A1: Data biegu | B1: Przebiegnięte km | C1: Czas biegu | D1: Średnia prędkość | E1: Miesiąc | F1: Dni tygodnia | G1: Łącznie przebiegniętych kilometrów | H1: z 6259,6 km
A2: 27-02-1013 | B2: 2.02 | E2: Luty | F2: Poniedziałek | G2: =SUM(B2:B22) -> 21.75
A3: 2-03-2013 | B3: 2.18 | E3: Marzec | F3: Wtorek
A4: 6-03-2013 | B4: 2.51 | E4: Marzec | F4: Środa
A5: 7-03-2013 | B5: 5.73 | E5: Marzec | F5: Czwartek
A6: 12-03-2013 | B6: 2.81 | E6: Marzec | F6: Piątek
A7: 19-03-2013 | B7: 3 | E7: Marzec | F7: Sobota
A8: 25-03-2013 | B8: 3.5 | E8: Marzec | F8: Niedziela

Sheet frizik
A1: Data biegu | B1: Przebiegnięte km | C1: Czas biegu | D1: Średnia prędkość | E1: Miesiąc | F1: Dni tygodnia | G1: Łącznie przebiegniętych kilometrów | H1: z 6259,6 km
A2: 27-02-2013 | B2: 3.4 | C2: 20m:15s | D2: 5:58 min/km | E2: Luty | F2: Poniedziałek | G2: =SUM(B2:B24) -> 173.12
A3: 4-03-2013 | B3: 14.45 | C3: 40m:09s | D3: 6:07 min/km | E3: Marzec | F3: Wtorek
A4: 6-03-2013 | B4: 4.24 | C4: 26m:56s | D4: 6:21 min/km | E4: Marzec | F4: Środa
A5: 8-03-2013 | B5: 7.66 | C5: 44m:36s | D5: 5:49 min/km | E5: Marzec | F5: Czwartek
A6: 11-03-2013 | B6: 18.63 | C6: 1g:54m:12s | D6: 6:08 min/km | E6: Marzec | F6: Piątek
A7: 13-03-2013 | B7: 7.9 | C7: 46m:09s | D7: 5:51 min/km | E7: Marzec | F7: Sobota
A8: 14-03-2013 | B8: 7.71 | C8: 42m:16s | D8: 5:29 min/km | E8: Marzec | F8: Niedziela
A9: 15-03-2013 | B9: 7.44 | C9: 42m:19s | D9: 5:41 min/km | E9: Marzec
A10: 17-03-2013 | B10: 5.31 | C10: 29m:59s | D10: 5:39 min/km | E10: Marzec
A11: 18-03-2013 | B11: 23.12 | C11: 2g:17m:30s | D11: 5:57 min/km | E11: Marzec
A12: 20-03-2013 | B12: 5.41 | C12: 31m:51s | D12: 5:53 min/km | E12: Marzec
A13: 21-03-2013 | B13: 8.47 | C13: 46m:00s | D13: 5:26 min/km | E13: Marzec
A14: 22-03-2013 | B14: 3.93 | C14: 22m:02s | D14: 5:37 min/km | E14: Marzec
A15: 25-03-2013 | B15: 20.92 | C15: 2g:01m:13s | D15: 5:48 min/km | E15: Marzec
A16: 29-03-2013 | B16: 8.93 | C16: 48m:59s | D16: 5:29 min/km | E16: Marzec
A17: 30-03-2013 | B17: 2 | C17: 14m:32s | D17: 7:16 min/km | E17: Marzec
A18: 30-03-2013 | B18: 7.44 | C18: 46m:57s | D18: 6:19 min/km | E18: Marzec
A19: 1-04-2013 | B19: 6.45 | C19: 46m:42s | D19: 7:14 min/km | E19: Kwiecień
A20: 4-04-2013 | B20: 4.81 | C20: 26m:24s | D20: 5:29 min/km | E20: Kwiecień
A21: 5-04-2013 | B21: 4.9 | C21: 26m:08s | D21: 5:20 min/km | E21: Kwiecień

Sheet Gadzinski
A1: Data biegu | B1: Przebiegnięte km | C1: Czas biegu | D1: Średnia prędkość | E1: Miesiąc | F1: Dni tygodnia | G1: Łącznie przebiegniętych kilometrów | H1: z 6259,6 km
A2: 2-03-2013 | B2: 8 | E2: Marzec | F2: Poniedziałek | G2: =SUM(B2:B22) -> 14.68
A3: 6-03-2013 | B3: 6.68 | E3: Marzec | F3: Wtorek
F4: Środa
F5: Czwartek
F6: Piątek
F7: Sobota
F8: Niedziela

Sheet Gangrel
A1: Data biegu | B1: Przebiegnięte km | C1: Czas biegu | D1: Średnia prędkość | E1: Miesiąc | F1: Dni tygodnia | G1: Łącznie przebiegniętych kilometrów | H1: z 6259,6 km
A2: 20-03-2013 | B2: 8.64 | C2: 45m:42s | D2: 5:17 min/km | E2: Marzec | F2: Poniedziałek | G2: =SUM(B2:B19) -> 36.22
A3: 25-03-2013 | B3: 9.22 | C3: 46m:44s | D3: 5:04 min/km | E3: Marzec | F3: Wtorek
A4: 2-04-2013 | B4: 9.25 | C4: 45m:41s | D4: 4:56 min/km | E4: Kwiecień | F4: Środa
A5: 4-04-2013 | B5: 9.11 | C5: 44m:50s | D5: 4:55 min/km | E5: Kwiecień | F5: Czwartek
F6: Piątek
F7: Sobota
F8: Niedziela

Sheet Gigi_
A1: Data biegu | B1: Przebiegnięte km | C1: Czas biegu | D1: Średnia prędkość | E1: Miesiąc | F1: Dni tygodnia | G1: Łącznie przebiegniętych kilometrów | H1: z 6259,6 km
A2: 27-02-2013 | B2: 3.6 | E2: Luty | F2: Poniedziałek | G2: =SUM(B2:B17) -> 21.6
A3: 27-02-2013 | B3: 3.6 | E3: Luty | F3: Wtorek
A4: 4-03-2013 | B4: 3.6 | E4: Marzec | F4: Środa
A5: 5-03-2013 | B5: 3.6 | E5: Marzec | F5: Czwartek
A6: 19-03-2013 | B6: 3.6 | E6: Marzec | F6: Piątek
A7: 25-03-2013 | B7: 3.6 | E7: Marzec | F7: Sobota
F8: Niedziela

Sheet godfath3r
A1: Data biegu | B1: Przebiegnięte km | C1: Czas biegu | D1: Średnia prędkość | E1: Miesiąc | F1: Dni tygodnia | G1: Łącznie przebiegniętych kilometrów | H1: z 6259,6 km
A2: 8-03-2013 | B2: 11.1 | E2: Marzec | F2: Poniedziałek | G2: =SUM(B2:B19) -> 75.86
A3: 13-03-2013 | B3: 3.05 | E3: Marzec | F3: Wtorek
A4: 15-03-2013 | B4: 10.08 | E4: Marzec | F4: Środa
A5: 18-03-2013 | B5: 3.08 | E5: Marzec | F5: Czwartek
A6: 20-03-2013 | B6: 3.1 | E6: Marzec | F6: Piątek
A7: 22-03-2013 | B7: 10.8 | E7: Marzec | F7: Sobota
A8: 22-03-2013 | B8: 3.13 | E8: Marzec | F8: Niedziela
A9: 27-03-2013 | B9: 3.15 | E9: Marzec
A10: 29-03-2013 | B10: 5.72 | E10: Marzec
A11: 2-04-2013 | B11: 5.72 | E11: Kwiecień
A12: 4-04-2013 | B12: 5.83 | E12: Kwiecień
A13: 6-04-2013 | B13: 11.1 | E13: Kwiecień

Sheet goomowy
A1: Data biegu | B1: Przebiegnięte km | C1: Czas biegu | D1: Średnia prędkość | E1: Miesiąc | F1: Dni tygodnia | G1: Łącznie przebiegniętych kilometrów | H1: z 6259,6 km
A2: 2-03-2013 | B2: 10 | E2: Marzec | F2: Poniedziałek | G2: =SUM(B2:B24) -> 60.9
A3: 5-03-2013 | B3: 8.5 | E3: Marzec | F3: Wtorek
A4: 8-03-2013 | B4: 8.2 | E4: Marzec | F4: Środa
A5: 12-03-2013 | B5: 8 | E5: Marzec | F5: Czwartek
A6: 14-03-2013 | B6: 8.2 | E6: Marzec | F6: Piątek
A7: 15-03-2013 | B7: 7.5 | C7: 1g:00m:00s | E7: Marzec | F7: Sobota
A8: 18-03-2013 | B8: 10.5 | C8: 1g:10m:00s | E8: Marzec | F8: Niedziela

Sheet GrabkaMan
A1: Data biegu | B1: Przebiegnięte km | C1: Czas biegu | D1: Średnia prędkość | E1: Miesiąc | F1: Dni tygodnia | G1: Łącznie przebiegniętych kilometrów | H1: z 6259,6 km
A2: 13-03-2013 | B2: 4.83 | E2: Marzec | F2: Poniedziałek | G2: =SUM(B2:B14) -> 38.4
A3: 15-03-2013 | B3: 5.63 | E3: Marzec | F3: Wtorek
A4: 20-03-2013 | B4: 5 | E4: Marzec | F4: Środa
A5: 22-03-2013 | B5: 5 | E5: Marzec | F5: Czwartek
A6: 25-03-2013 | B6: 7.24 | E6: Marzec | F6: Piątek
A7: 27-03-2013 | B7: 4.2 | E7: Marzec | F7: Sobota
A8: 1-04-2013 | B8: 3.5 | E8: Kwiecień | F8: Niedziela
A9: 2-04-2013 | B9: 3 | E9: Kwiecień

Sheet guarani
A1: Data biegu | B1: Przebiegnięte km | C1: Czas biegu | D1: Średnia prędkość | E1: Miesiąc | F1: Dni tygodnia | G1: Łącznie przebiegniętych kilometrów | H1: z 6259,6 km
A2: 14-03-2013 | B2: 3.9 | E2: Marzec | F2: Poniedziałek | G2: =SUM(B2:B17) -> 3.9
F3: Wtorek
F4: Środa
F5: Czwartek
F6: Piątek
F7: Sobota
F8: Niedziela

Sheet gugas
A1: Data biegu | B1: Przebiegnięte km | C1: Czas biegu | D1: Średnia prędkość | E1: Miesiąc | F1: Dni tygodnia | G1: Łącznie przebiegniętych kilometrów | H1: z 6259,6 km
A2: 5-03-2013 | B2: 4.2 | E2: Marzec | F2: Poniedziałek | G2: =SUM(B2:B26) -> 10.1
A3: 11-03-2013 | B3: 3.6 | E3: Marzec | F3: Wtorek
A4: 14-03-2013 | B4: 2.3 | E4: Marzec | F4: Środa
F5: Czwartek
F6: Piątek
F7: Sobota
F8: Niedziela

Sheet Guinness
A1: Data biegu | B1: Przebiegnięte km | C1: Czas biegu | D1: Średnia prędkość | E1: Miesiąc | F1: Dni tygodnia | G1: Łącznie przebiegniętych kilometrów | H1: z 6259,6 km
A2: 10-03-2013 | B2: 3.32 | C2: 19m:39s | D2: 5:56 min/km | E2: Marzec | F2: Poniedziałek | G2: =SUM(B2:B25) -> 3.32
F3: Wtorek
F4: Środa
F5: Czwartek
F6: Piątek
F7: Sobota
F8: Niedziela

Sheet heeidi
A1: Data biegu | B1: Przebiegnięte km | C1: Czas biegu | D1: Średnia prędkość | E1: Miesiąc | F1: Dni tygodnia | G1: Łącznie przebiegniętych kilometrów | H1: z 6259,6 km
A2: 28-02-2013 | B2: 6 | E2: Luty | F2: Poniedziałek | G2: =SUM(B2:B28) -> 6
F3: Wtorek
F4: Środa
F5: Czwartek
F6: Piątek
F7: Sobota
F8: Niedziela

Sheet izzardPL
A1: Data biegu | B1: Przebiegnięte km | C1: Czas biegu | D1: Średnia prędkość | E1: Miesiąc | F1: Dni tygodnia | G1: Łącznie przebiegniętych kilometrów | H1: z 6259,6 km
A2: 5-03-2013 | B2: 7.12 | C2: 39m:24s | D2: 5:32 min/km | E2: Marzec | F2: Poniedziałek | G2: =SUM(B2:B25) -> 29.99
A3: 5-03-2013 | B3: 4.36 | C3: 26m:13s | D3: 6:01 min/km | E3: Marzec | F3: Wtorek
A4: 9-03-2013 | B4: 2.06 | C4: 13m:23s | D4: 6:31 min/km | E4: Marzec | F4: Środa
A5: 16-03-2013 | B5: 3.25 | C5: 17m:07s | E5: Marzec | F5: Czwartek
A6: 27-03-2013 | B6: 8.2 | C6: 49m:54s | D6: 6:05 min/km | E6: Marzec | F6: Piątek
A7: 3-04-2013 | B7: 5 | E7: Kwiecień | F7: Sobota
F8: Niedziela

Sheet hqvkamil
A1: Data biegu | B1: Przebiegnięte km | C1: Czas biegu | D1: Średnia prędkość | E1: Miesiąc | F1: Dni tygodnia | G1: Łącznie przebiegniętych kilometrów | H1: z 6259,6 km
A2: 28-02-2013 | B2: 3.26 | C2: 21m:46s | D2: 6:40 min/km | E2: Luty | F2: Poniedziałek | G2: =SUM(B2:B30) -> 169.04
A3: 2-03-2013 | B3: 7.02 | C3: 48m:29s | D3: 6:55 min/km | E3: Marzec | F3: Wtorek
A4: 4-03-2013 | B4: 2.77 | C4: 17m:45s | D4: 6:25 min/km | E4: Marzec | F4: Środa
A5: 9-03-2013 | B5: 7.25 | C5: 50m:50s | D5: 7:00 min/km | E5: Marzec | F5: Czwartek
A6: 10-03-2013 | B6: 8.39 | C6: 59m:30s | D6: 7:05 min/km | E6: Marzec | F6: Piątek
A7: 12-03-2013 | B7: 7.53 | C7: 49m:30s | D7: 6:34 min/km | E7: Marzec | F7: Sobota
A8: 14-03-2013 | B8: 3.8 | C8: 26m:02s | D8: 6:51 min/km | E8: Marzec | F8: Niedziela
A9: 16-03-2013 | B9: 11.01 | C9: 1g:21m:05s | D9: 7:22 min/km | E9: Marzec
A10: 18-03-2013 | B10: 8.07 | C10: 57m:45s | D10: 7:09 min/km | E10: Marzec
A11: 19-03-2013 | B11: 10.4 | C11: 1g:12m:01s | D11: 6:55 min/km | E11: Marzec
A12: 21-03-2013 | B12: 6.16 | C12: 41m:30s | D12: 6:44 min/km | E12: Marzec
A13: 22-03-2013 | B13: 11.26 | C13: 1g:24m:04s | D13: 7:28 min/km | E13: Marzec
A14: 23-03-2013 | B14: 5.54 | C14: 37m:26s | D14: 6:46 min/km | E14: Marzec
A15: 24-03-2013 | B15: 7.04 | C15: 48m:07s | D15: 6:50 min/km | E15: Marzec
A16: 26-03-2013 | B16: 8.25 | C16: 56m:15s | D16: 6:49 min/km | E16: Marzec
A17: 29-03-2013 | B17: 10.13 | C17: 1g:10m:07s | D17: 6:55 min/km | E17: Marzec
A18: 30-03-2013 | B18: 10.88 | C18: 1g:16m:05s | D18: 7:00 min/km | E18: Marzec
A19: 31-03-2013 | B19: 11.11 | C19: 1g:18m:01s | D19: 7:01 min/km | E19: Marzec
A20: 2-04-2013 | B20: 10.04 | C20: 1g:07m:02s | D20: 6:40 min/km | E20: Kwiecień
A21: 3-04-2013 | B21: 8.05 | C21: 54m:56s | D21: 6:50 min/km | E21: Kwiecień
A22: 5-04-2013 | B22: 11.08 | C22: 1g:16m:06s | D22: 6:52 min/km | E22: Kwiecień

Sheet iotochodzi
A1: Data biegu | B1: Przebiegnięte km | C1: Czas biegu | D1: Średnia prędkość | E1: Miesiąc | F1: Dni tygodnia | G1: Łącznie przebiegniętych kilometrów | H1: z 6259,6 km
A2: 3-03-2013 | B2: 8.9 | E2: Marzec | F2: Poniedziałek | G2: =SUM(B2:B27) -> 26.51
A3: 4-03-2013 | B3: 7.6 | E3: Marzec | F3: Wtorek
A4: 8-03-2013 | B4: 10.01 | E4: Marzec | F4: Środa
F5: Czwartek
F6: Piątek
F7: Sobota
F8: Niedziela

Sheet JangoFett
A1: Data biegu | B1: Przebiegnięte km | C1: Czas biegu | D1: Średnia prędkość | E1: Miesiąc | F1: Dni tygodnia | G1: Łącznie przebiegniętych kilometrów | H1: z 6259,6 km
A2: 19-03-2013 | B2: 3.7 | E2: Marzec | F2: Poniedziałek | G2: =SUM(B2:B19) -> 18.4
A3: 20-03-2013 | B3: 3.65 | E3: Marzec | F3: Wtorek
A4: 21-03-2013 | B4: 3.55 | E4: Marzec | F4: Środa
A5: 25-03-2013 | B5: 4.2 | E5: Marzec | F5: Czwartek
A6: 26-03-2013 | B6: 3.3 | E6: Marzec | F6: Piątek
F7: Sobota
F8: Niedziela

Sheet Janodemon
A1: Data biegu | B1: Przebiegnięte km | C1: Czas biegu | D1: Średnia prędkość | E1: Miesiąc | F1: Dni tygodnia | G1: Łącznie przebiegniętych kilometrów | H1: z 6259,6 km
A2: 26-02-2013 | B2: 5 | C2: 37m:18s | E2: Luty | F2: Poniedziałek | G2: =SUM(B2:B25) -> 10
A3: 27-02-2013 | B3: 5 | C3: 38m:51s | E3: Luty | F3: Wtorek
F4: Środa
F5: Czwartek
F6: Piątek
F7: Sobota
F8: Niedziela

Sheet jaras2
A1: Data biegu | B1: Przebiegnięte km | C1: Czas biegu | D1: Średnia prędkość | E1: Miesiąc | F1: Dni tygodnia | G1: Łącznie przebiegniętych kilometrów | H1: z 6259,6 km
A2: 2-03-2013 | B2: 3.63 | E2: Marzec | F2: Poniedziałek | G2: =SUM(B2:B24) -> 3.63
F3: Wtorek
F4: Środa
F5: Czwartek
F6: Piątek
F7: Sobota
F8: Niedziela

Sheet jestemrowerem
A1: Data biegu | B1: Przebiegnięte km | C1: Czas biegu | D1: Średnia prędkość | E1: Miesiąc | F1: Dni tygodnia | G1: Łącznie przebiegniętych kilometrów | H1: z 6259,6 km
A2: 25-03-2013 | B2: 6.01 | E2: Marzec | F2: Poniedziałek | G2: =SUM(B2:B20) -> 6.01
F3: Wtorek
F4: Środa
F5: Czwartek
F6: Piątek
F7: Sobota
F8: Niedziela

Sheet JokerLine
A1: Data biegu | B1: Przebiegnięte km | C1: Czas biegu | D1: Średnia prędkość | E1: Miesiąc | F1: Dni tygodnia | G1: Łącznie przebiegniętych kilometrów | H1: z 6259,6 km
A2: 26-02-2013 | B2: 6.08 | C2: 34m:00s | D2: 5:36 min/km | E2: Luty | F2: Poniedziałek | G2: =SUM(B2:B33) -> 297.85
A3: 28-02-2013 | B3: 8.19 | C3: 45m:11s | D3: 5:31 min/km | E3: Luty | F3: Wtorek
A4: 1-03-2013 | B4: 11.9 | C4: 1g:14m:00s | D4: 6:13 min/km | E4: Marzec | F4: Środa
A5: 2-03-2013 | B5: 12.46 | C5: 1g:30m:06s | D5: 7:14 min/km | E5: Marzec | F5: Czwartek
A6: 3-03-2013 | B6: 14.23 | C6: 1g:30m:33s | D6: 6:22 min/km | E6: Marzec | F6: Piątek
A7: 4-03-2013 | B7: 11.7 | C7: 1g:07m:52s | D7: 5:48 min/km | E7: Marzec | F7: Sobota
A8: 5-03-2013 | B8: 14.37 | C8: 1g:48m:32s | D8: 7:33 min/km | E8: Marzec | F8: Niedziela
A9: 6-03-2013 | B9: 11.01 | C9: 1g:02m:55s | D9: 5:43 min/km | E9: Marzec
A10: 6-03-2013 | B10: 4.36 | C10: 51m:18s | D10: 11:46 min/km | E10: Marzec
A11: 9-03-2013 | B11: 5 | C11: 25m:44s | D11: 5:09 min/km | E11: Marzec
A12: 12-03-2013 | B12: 9.15 | C12: 1g:06m:59s | D12: 7:19 min/km | E12: Marzec
A13: 13-03-2013 | B13: 10.87 | C13: 1g:20m:38s | D13: 7:25 min/km | E13: Marzec
A14: 14-03-2013 | B14: 5.58 | C14: 38m:13s | D14: 6:51 min/km | E14: Marzec
A15: 16-03-2013 | B15: 10 | C15: 1g:00m:00s | D15: 6:00 min/km | E15: Marzec
A16: 17-03-2013 | B16: 10 | C16: 1g:02m:00s | D16: 6:12 min/km | E16: Marzec
A17: 20-03-2013 | B17: 11.32 | C17: 1g:09m:54s | D17: 6:10 min/km | E17: Marzec
A18: 20-03-2013 | B18: 3.39 | C18: 30m:15s | D18: 8:56 min/km | E18: Marzec
A19: 21-03-2013 | B19: 11 | C19: 1g:06m:12s | D19: 6:00 min/km | E19: Marzec
A20: 23-03-2013 | B20: 20.21 | C20: 2g:01m:14s | D20: 6:00 min/km | E20: Marzec
A21: 24-03-2013 | B21: 11.3 | C21: 1g:07m:00s | D21: 5:56 min/km | E21: Marzec
A22: 25-03-2013 | B22: 11.06 | C22: 1g:03m:36s | D22: 5:45 min/km | E22: Marzec
A23: 26-03-2013 | B23: 10.58 | C23: 1g:00m:48s | D23: 5:45 min/km | E23: Marzec
A24: 27-03-2013 | B24: 7 | E24: Marzec
A25: 28-03-2013 | B25: 12.32 | C25: 1g:15m:00s | D25: 6:05 min/k | E25: Marzec
A26: 29-03-2013 | B26: 9.7 | E26: Marzec
A27: 30-03-2013 | B27: 21.83 | C27: 2g:10m:58s | D27: 6:00 min/km | E27: Marzec
A28: 1-04-2013 | B28: 11.6 | C28: 1g:28m:22s | D28: 7:37 min/km | E28: Kwiecień
A29: 2-04-2013 | B29: 11.64 | C29: 1g:11m:42s | D29: 6:10 min/km | E29: Kwiecień

Sheet Jumper
A1: Data biegu | B1: Przebiegnięte km | C1: Czas biegu | D1: Średnia prędkość | E1: Miesiąc | F1: Dni tygodnia | G1: Łącznie przebiegniętych kilometrów | H1: z 6259,6 km
A2: 7-03-2013 | B2: 5.6 | E2: Marzec | F2: Poniedziałek | G2: =SUM(B2:B16) -> 5.6
F3: Wtorek
F4: Środa
F5: Czwartek
F6: Piątek
F7: Sobota
F8: Niedziela

Sheet _K4milk
A1: Data biegu | B1: Przebiegnięte km | C1: Czas biegu | D1: Średnia prędkość | E1: Miesiąc | F1: Dni tygodnia | G1: Łącznie przebiegniętych kilometrów | H1: z 6259,6 km
A2: 4-03-2013 | B2: 2.9 | E2: Marzec | F2: Poniedziałek | G2: =SUM(B2:B24) -> 71.41
A3: 5-03-2013 | B3: 3.13 | E3: Marzec | F3: Wtorek
A4: 8-03-2013 | B4: 3.11 | C4: 19m:35s | D4: 6:18 min/km | E4: Marzec | F4: Środa
A5: 10-03-2013 | B5: 4.51 | C5: 29m:18s | D5: 6:29 min/km | E5: Marzec | F5: Czwartek
A6: 13-03-2013 | B6: 5.2 | C6: 33m:56s | D6: 6:32 min/km | E6: Marzec | F6: Piątek
A7: 15-03-2013 | B7: 6.6 | C7: 43m:41s | D7: 6:37 min/km | E7: Marzec | F7: Sobota
A8: 17-03-2013 | B8: 7.72 | C8: 49m:46s | D8: 6:26 min/km | E8: Marzec | F8: Niedziela
A9: 20-03-2013 | B9: 8.68 | C9: 55m:50s | D9: 6:25 min/km | E9: Marzec
A10: 22-03-2013 | B10: 10 | C10: 1g:04m:51s | D10: 6:29 min/km | E10: Marzec
A11: 25-03-2013 | B11: 4.52 | C11: 25m:30s | D11: 5:38 min/km | E11: Marzec
A12: 27-03-2013 | B12: 10.04 | C12: 1g:03m:22s | D12: 6:18 min/km | E12: Marzec
A13: 5-04-2013 | B13: 5 | C13: 30m:14s | D13: 6:02 min/km | E13: Kwiecień

Sheet kamil89qwerty
A1: Data biegu | B1: Przebiegnięte km | C1: Czas biegu | D1: Średnia prędkość | E1: Miesiąc | F1: Dni tygodnia | G1: Łącznie przebiegniętych kilometrów | H1: z 6259,6 km
A2: 8-03-2013 | B2: 7.5 | E2: Marzec | F2: Poniedziałek | G2: =SUM(B2:B33) -> 170
A3: 9-03-2013 | B3: 7.5 | E3: Marzec | F3: Wtorek
A4: 9-03-2013 | B4: 6 | E4: Marzec | F4: Środa
A5: 10-03-2013 | B5: 7.5 | E5: Marzec | F5: Czwartek
A6: 10-03-2013 | B6: 6 | E6: Marzec | F6: Piątek
A7: 12-03-2013 | B7: 7.5 | E7: Marzec | F7: Sobota
A8: 14-03-2013 | B8: 7.5 | E8: Marzec | F8: Niedziela
A9: 17-03-2013 | B9: 7.5 | E9: Marzec
A10: 18-03-2013 | B10: 8.7 | E10: Marzec
A11: 20-03-2013 | B11: 9.8 | E11: Marzec
A12: 22-03-2013 | B12: 7.5 | E12: Marzec
A13: 23-03-2013 | B13: 10.2 | E13: Marzec
A14: 24-03-2013 | B14: 7.5 | E14: Marzec
A15: 25-03-2013 | B15: 7.5 | E15: Marzec
A16: 27-03-2013 | B16: 10 | E16: Marzec
A17: 28-03-2013 | B17: 7.7 | E17: Marzec
A18: 31-03-2013 | B18: 4.3 | E18: Marzec
A19: 2-04-2013 | B19: 15 | E19: Kwiecień
A20: 3-04-2013 | B20: 7.8 | E20: Kwiecień
A21: 5-04-2013 | B21: 8 | E21: Kwiecień
A22: 6-04-2013 | B22: 9 | E22: Kwiecień

Sheet karvon
A1: Data biegu | B1: Przebiegnięte km | C1: Czas biegu | D1: Średnia prędkość | E1: Miesiąc | F1: Dni tygodnia | G1: Łącznie przebiegniętych kilometrów | H1: z 6259,6 km
A2: 1-03-2013 | B2: 5.04 | E2: Marzec | F2: Poniedziałek | G2: =SUM(B2:B19) -> 32.11
A3: 2-03-2013 | B3: 5.5 | E3: Marzec | F3: Wtorek
A4: 7-03-2013 | B4: 10.1 | E4: Marzec | F4: Środa
A5: 8-03-2013 | B5: 5.01 | E5: Marzec | F5: Czwartek
A6: 12-03-2013 | B6: 6.46 | E6: Marzec | F6: Piątek
F7: Sobota
F8: Niedziela

Sheet Konalio
A1: Data biegu | B1: Przebiegnięte km | C1: Czas biegu | D1: Średnia prędkość | E1: Miesiąc | F1: Dni tygodnia | G1: Łącznie przebiegniętych kilometrów | H1: z 6259,6 km
A2: 4-03-2013 | B2: 6 | E2: Marzec | F2: Poniedziałek | G2: =SUM(B2:B24) -> 6
F3: Wtorek
F4: Środa
F5: Czwartek
F6: Piątek
F7: Sobota
F8: Niedziela

Sheet kontra
A1: Data biegu | B1: Przebiegnięte km | C1: Czas biegu | D1: Średnia prędkość | E1: Miesiąc | F1: Dni tygodnia | G1: Łącznie przebiegniętych kilometrów | H1: z 6259,6 km
A2: 27-02-2013 | B2: 5.54 | E2: Luty | F2: Poniedziałek | G2: =SUM(B2:B27) -> 76.94
A3: 2-03-2013 | B3: 10.13 | E3: Marzec | F3: Wtorek
A4: 6-03-2013 | B4: 5.51 | E4: Marzec | F4: Środa
A5: 8-03-2013 | B5: 6.01 | E5: Marzec | F5: Czwartek
A6: 10-03-2013 | B6: 3.85 | E6: Marzec | F6: Piątek
A7: 11-03-2013 | B7: 12.5 | E7: Marzec | F7: Sobota
A8: 18-03-2013 | B8: 5.51 | E8: Marzec | F8: Niedziela
A9: 20-03-2013 | B9: 7.73 | E9: Marzec
A10: 22-03-2013 | B10: 6.01 | E10: Marzec
A11: 25-03-2013 | B11: 7.05 | E11: Marzec
A12: 4-04-2013 | B12: 7.1 | E12: Kwiecień

Sheet korpiel
A1: Data biegu | B1: Przebiegnięte km | C1: Czas biegu | D1: Średnia prędkość | E1: Miesiąc | F1: Dni tygodnia | G1: Łącznie przebiegniętych kilometrów | H1: z 6259,6 km
A2: 28-02-2013 | B2: 5.9 | E2: Luty | F2: Poniedziałek | G2: =SUM(B2:B24) -> 5.9
F3: Wtorek
F4: Środa
F5: Czwartek
F6: Piątek
F7: Sobota
F8: Niedziela

Sheet korzenny
A1: Data biegu | B1: Przebiegnięte km | C1: Czas biegu | D1: Średnia prędkość | E1: Miesiąc | F1: Dni tygodnia | G1: Łącznie przebiegniętych kilometrów | H1: z 6259,6 km
A2: 6-03-2013 | B2: 4.5 | E2: Marzec | F2: Poniedziałek | G2: =SUM(B2:B27) -> 4.5
F3: Wtorek
F4: Środa
F5: Czwartek
F6: Piątek
F7: Sobota
F8: Niedziela

Sheet Kozzi
A1: Data biegu | B1: Przebiegnięte km | C1: Czas biegu | D1: Średnia prędkość | E1: Miesiąc | F1: Dni tygodnia | G1: Łącznie przebiegniętych kilometrów | H1: z 6259,6 km
A2: 6-03-2013 | B2: 3.49 | C2: 15m:34s | D2: 4:28 min/km | E2: Marzec | F2: Poniedziałek | G2: =SUM(B2:B26) -> 3.49
F3: Wtorek
F4: Środa
F5: Czwartek
F6: Piątek
F7: Sobota
F8: Niedziela

Sheet Kresowiak
A1: Data biegu | B1: Przebiegnięte km | C1: Czas biegu | D1: Średnia prędkość | E1: Miesiąc | F1: Dni tygodnia | G1: Łącznie przebiegniętych kilometrów | H1: z 6259,6 km
A2: 5-04-2013 | B2: 20.28 | E2: Kwiecień | F2: Poniedziałek | G2: =SUM(B2:B21) -> 20.28
F3: Wtorek
F4: Środa
F5: Czwartek
F6: Piątek
F7: Sobota
F8: Niedziela

Sheet krzysiulek
A1: Data biegu | B1: Przebiegnięte km | C1: Czas biegu | D1: Średnia prędkość | E1: Miesiąc | F1: Dni tygodnia | G1: Łącznie przebiegniętych kilometrów | H1: z 6259,6 km
A2: 8-03-2013 | B2: 7.1 | E2: Marzec | F2: Poniedziałek | G2: =SUM(B2:B18) -> 16.3
A3: 6-04-2013 | B3: 9.2 | E3: Kwiecień | F3: Wtorek
F4: Środa
F5: Czwartek
F6: Piątek
F7: Sobota
F8: Niedziela

Sheet ktoosiu
A1: Data biegu | B1: Przebiegnięte km | C1: Czas biegu | D1: Średnia prędkość | E1: Miesiąc | F1: Dni tygodnia | G1: Łącznie przebiegniętych kilometrów | H1: z 6259,6 km
A2: 6-03-2013 | B2: 1.2 | E2: Marzec | F2: Poniedziałek | G2: =SUM(B2:B17) -> 1.2
F3: Wtorek
F4: Środa
F5: Czwartek
F6: Piątek
F7: Sobota
F8: Niedziela

Sheet Kuba_prezes
A1: Data biegu | B1: Przebiegnięte km | C1: Czas biegu | D1: Średnia prędkość | E1: Miesiąc | F1: Dni tygodnia | G1: Łącznie przebiegniętych kilometrów | H1: z 6259,6 km
A2: 28-02-2013 | B2: 12.5 | E2: Luty | F2: Poniedziałek | G2: =SUM(B2:B22) -> 75.26
A3: 2-03-2013 | B3: 10.53 | E3: Marzec | F3: Wtorek
A4: 3-03-2013 | B4: 22 | E4: Marzec | F4: Środa
A5: 18-03-2013 | B5: 5.5 | E5: Marzec | F5: Czwartek
A6: 20-03-2013 | B6: 8.2 | E6: Marzec | F6: Piątek
A7: 22-03-2013 | B7: 5.53 | E7: Marzec | F7: Sobota
A8: 2-04-2013 | B8: 5.5 | E8: Kwiecień | F8: Niedziela
A9: 4-04-2013 | B9: 5.5 | E9: Kwiecień

Sheet Loynis
A1: Data biegu | B1: Przebiegnięte km | C1: Czas biegu | D1: Średnia prędkość | E1: Miesiąc | F1: Dni tygodnia | G1: Łącznie przebiegniętych kilometrów | H1: z 6259,6 km
A2: 1-03-2013 | B2: 10.88 | E2: Marzec | F2: Poniedziałek | G2: =SUM(B2:B22) -> 74.09
A3: 3-03-2013 | B3: 15.3 | E3: Marzec | F3: Wtorek
A4: 4-03-2013 | B4: 10.02 | E4: Marzec | F4: Środa
A5: 5-03-2013 | B5: 12.71 | E5: Marzec | F5: Czwartek
A6: 7-03-2013 | B6: 10.4 | E6: Marzec | F6: Piątek
A7: 9-03-2013 | B7: 10.53 | E7: Marzec | F7: Sobota
A8: 12-03-2013 | B8: 4.25 | E8: Marzec | F8: Niedziela

Sheet Lsrd
A1: Data biegu | B1: Przebiegnięte km | C1: Czas biegu | D1: Średnia prędkość | E1: Miesiąc | F1: Dni tygodnia | G1: Łącznie przebiegniętych kilometrów | H1: z 6259,6 km
A2: 27-02-2013 | B2: 9.57 | C2: 46m:21s | D2: 4:51 min/km | E2: Luty | F2: Poniedziałek | G2: =SUM(B2:B32) -> 154.34
A3: 28-02-2013 | B3: 9.02 | C3: 41m:56s | D3: 4:39 min/km | E3: Luty | F3: Wtorek
A4: 3-03-2013 | B4: 8.47 | E4: Marzec | F4: Środa
A5: 6-03-2013 | B5: 5.08 | C5: 22m:10s | D5: 4:22 min/km | E5: Marzec | F5: Czwartek
A6: 7-03-2013 | B6: 7.26 | E6: Marzec | F6: Piątek
A7: 9-03-2013 | B7: 11.61 | C7: 57m:52s | D7: 4:59 min/km | E7: Marzec | F7: Sobota
A8: 12-03-2013 | B8: 10.32 | C8: 51m:31s | D8: 5:00 min/km | E8: Marzec | F8: Niedziela
A9: 14-03-2013 | B9: 10.15 | C9: 48m:59s | D9: 4:50 min/km | E9: Marzec
A10: 16-03-2013 | B10: 4.99 | C10: 21m:54s | D10: 4:23 min/km | E10: Marzec
A11: 17-03-2013 | B11: 5.02 | C11: 26m:06s | D11: 5:12 min/km | E11: Marzec
A12: 17-03-2013 | B12: 6.96 | C12: 36m:22s | D12: 5:14 min/km | E12: Marzec
A13: 21-03-2013 | B13: 7.64 | C13: 34m:03s | D13: 4:27 min/km | E13: Marzec
A14: 23-03-2013 | B14: 14.77 | C14: 1g:12m:03s | D14: 4:53 min/km | E14: Marzec
A15: 26-03-2013 | B15: 5.03 | C15: 21m:28s | D15: 4:16 min/km | E15: Marzec
A16: 28-03-2013 | B16: 10.12 | C16: 47m:13s | D16: 4:40 min/km | E16: Marzec
A17: 31-03-2013 | B17: 2.54 | C17: 13m:44s | D17: 5:24 min/km | E17: Marzec
A18: 31-03-2013 | B18: 6.62 | C18: 36m:29s | D18: 5:30 min/km | E18: Marzec
A19: 2-04-2013 | B19: 13.87 | C19: 1g:06m:49s | D19: 4:49 min/km | E19: Kwiecień
A20: 4-04-2013 | B20: 2.77 | C20: 11m:43s | D20: 4:14 min/km | E20: Kwiecień
A21: 4-04-2013 | B21: 1.04 | C21: 3m:40s | D21: 3:31 min/km | E21: Kwiecień
A22: 4-04-2013 | B22: 1.49 | C22: 7m:58s | D22: 5:21 min/km | E22: Kwiecień

Sheet lukaszwasyl
A1: Data biegu | B1: Przebiegnięte km | C1: Czas biegu | D1: Średnia prędkość | E1: Miesiąc | F1: Dni tygodnia | G1: Łącznie przebiegniętych kilometrów | H1: z 6259,6 km
A2: 7-03-2013 | B2: 11.54 | E2: Marzec | F2: Poniedziałek | G2: =SUM(B2:B24) -> 82.71
A3: 9-03-2013 | B3: 15.75 | E3: Marzec | F3: Wtorek
A4: 11-03-2013 | B4: 13.52 | E4: Marzec | F4: Środa
A5: 12-03-2013 | B5: 10.38 | E5: Marzec | F5: Czwartek
A6: 14-03-2013 | B6: 13.4 | E6: Marzec | F6: Piątek
A7: 2-04-2013 | B7: 18.12 | C7: 1g:37m:54s | D7: 5:24 min/km | E7: Kwiecień | F7: Sobota
F8: Niedziela

Sheet maciao
A1: Data biegu | B1: Przebiegnięte km | C1: Czas biegu | D1: Średnia prędkość | E1: Miesiąc | F1: Dni tygodnia | G1: Łącznie przebiegniętych kilometrów | H1: z 6259,6 km
A2: 3-03-2013 | B2: 2 | E2: Marzec | F2: Poniedziałek | G2: =SUM(B2:B24) -> 57.6
A3: 5-03-2013 | B3: 2.1 | E3: Marzec | F3: Wtorek
A4: 8-03-2013 | B4: 2 | E4: Marzec | F4: Środa
A5: 10-03-2013 | B5: 2.5 | E5: Marzec | F5: Czwartek
A6: 11-03-2013 | B6: 3 | E6: Marzec | F6: Piątek
A7: 13-03-2013 | B7: 3 | E7: Marzec | F7: Sobota
A8: 14-03-2013 | B8: 3 | E8: Marzec | F8: Niedziela
A9: 16-03-2013 | B9: 3 | E9: Marzec
A10: 18-03-2013 | B10: 5 | E10: Marzec
A11: 19-03-2013 | B11: 5 | E11: Marzec
A12: 20-03-2013 | B12: 3 | E12: Marzec
A13: 24-03-2013 | B13: 3 | E13: Marzec
A14: 26-03-2013 | B14: 3 | E14: Marzec
A15: 28-03-2013 | B15: 3 | E15: Marzec
A16: 29-03-2013 | B16: 5 | E16: Marzec
A17: 30-03-2013 | B17: 5 | E17: Marzec
A18: 2-04-2013 | B18: 5 | E18: Kwiecień

Sheet madev
A1: Data biegu | B1: Przebiegnięte km | C1: Czas biegu | D1: Średnia prędkość | E1: Miesiąc | F1: Dni tygodnia | G1: Łącznie przebiegniętych kilometrów | H1: z 6259,6 km
A2: 27-02-2013 | B2: 3.09 | E2: Luty | F2: Poniedziałek | G2: =SUM(B2:B22) -> 12.24
A3: 6-03-2013 | B3: 2.84 | E3: Marzec | F3: Wtorek
A4: 12-03-2013 | B4: 3.22 | E4: Marzec | F4: Środa
A5: 15-03-2013 | B5: 3.09 | E5: Marzec | F5: Czwartek
F6: Piątek
F7: Sobota
F8: Niedziela

Sheet Madius
A1: Data biegu | B1: Przebiegnięte km | C1: Czas biegu | D1: Średnia prędkość | E1: Miesiąc | F1: Dni tygodnia | G1: Łącznie przebiegniętych kilometrów | H1: z 6259,6 km
A2: 5-03-2013 | B2: 5.1 | E2: Marzec | F2: Poniedziałek | G2: =SUM(B2:B27) -> 10.1
A3: 6-03-2013 | B3: 5 | E3: Marzec | F3: Wtorek
F4: Środa
F5: Czwartek
F6: Piątek
F7: Sobota
F8: Niedziela

Sheet mani3kxc
A1: Data biegu | B1: Przebiegnięte km | C1: Czas biegu | D1: Średnia prędkość | E1: Miesiąc | F1: Dni tygodnia | G1: Łącznie przebiegniętych kilometrów | H1: z 6259,6 km
A2: 27-02-2013 | B2: 5.15 | C2: 25m:40s | D2: 4:59 min/km | E2: Luty | F2: Poniedziałek | G2: =SUM(B2:B25) -> 201.13
A3: 28-02-2013 | B3: 21.34 | C3: 2g:01m:54s | D3: 5:43 min/km | E3: Luty | F3: Wtorek
A4: 2-03-2013 | B4: 10.01 | C4: 55m:20s | D4: 5:32 min/km | E4: Marzec | F4: Środa
A5: 3-03-2013 | B5: 10.34 | C5: 55m:41s | D5: 7:22 min/km | E5: Marzec | F5: Czwartek
A6: 4-03-2013 | B6: 5.04 | C6: 27m:17s | D6: 5:25 min/km | E6: Marzec | F6: Piątek
A7: 6-03-2013 | B7: 25.01 | C7: 2g:29m:39s | D7: 5:59 min/km | E7: Marzec | F7: Sobota
A8: 13-03-2013 | B8: 5.04 | C8: 31m:30s | D8: 6:15 min/km | E8: Marzec | F8: Niedziela
A9: 13-03-2013 | B9: 5.51 | C9: 30m:42s | D9: 5:34 min/km | E9: Marzec
A10: 18-03-2013 | B10: 5.51 | C10: 27m:42s | D10: 5:02 min/km | E10: Marzec
A11: 19-03-2013 | B11: 10.02 | C11: 54m:59s | D11: 5:29 min/km | E11: Marzec
A12: 20-03-2013 | B12: 10.02 | C12: 53m:38s | D12: 5:21 min/km | E12: Marzec
A13: 27-03-2013 | B13: 10.04 | C13: 56m:51s | D13: 5:40 min/km | E13: Marzec
A14: 28-03-2013 | B14: 11.26 | C14: 57m:23s | D14: 5:06 min/km | E14: Marzec
A15: 30-03-2013 | B15: 10.05 | C15: 53m:45s | D15: 5:21 min/km | E15: Marzec
A16: 31-03-2013 | B16: 10.03 | C16: 55m:01s | D16: 5:29 min/km | E16: Marzec
A17: 2-04-2013 | B17: 11.46 | C17: 1g:07m:31s | D17: 5:53 min/km | E17: Kwiecień
A18: 3-04-2013 | B18: 10.19 | C18: 58m:06s | D18: 5:42 min/km | E18: Kwiecień
A19: 4-04-2013 | B19: 11.1 | C19: 56m:38s | D19: 5:06 min/km | E19: Kwiecień
A20: 5-04-2013 | B20: 14.01 | C20: 1g:19m:56s | D20: 5:42 min/km | E20: Kwiecień

Sheet manieq88
A1: Data biegu | B1: Przebiegnięte km | C1: Czas biegu | D1: Średnia prędkość | E1: Miesiąc | F1: Dni tygodnia | G1: Łącznie przebiegniętych kilometrów | H1: z 6259,6 km
A2: 5-03-2013 | B2: 6.39 | E2: Marzec | F2: Poniedziałek | G2: =SUM(B2:B24) -> 25.49
A3: 7-03-2013 | B3: 5.08 | E3: Marzec | F3: Wtorek
A4: 10-03-2013 | B4: 5.23 | C4: 36m:12s | D4: 6:55 min/km | E4: Marzec | F4: Środa
A5: 11-03-2013 | B5: 5.08 | C5: 31m:39s | D5: 6:14 min/km | E5: Marzec | F5: Czwartek
A6: 13-03-2013 | B6: 3.71 | C6: 20m:57s | D6: 5:39 min/km | E6: Marzec | F6: Piątek
F7: Sobota
F8: Niedziela

Sheet marekq
A1: Data biegu | B1: Przebiegnięte km | C1: Czas biegu | D1: Średnia prędkość | E1: Miesiąc | F1: Dni tygodnia | G1: Łącznie przebiegniętych kilometrów | H1: z 6259,6 km
A2: 19-03-2013 | B2: 3.8 | E2: Marzec | F2: Poniedziałek | G2: =SUM(B2:B22) -> 35.1
A3: 21-03-2013 | B3: 4 | E3: Marzec | F3: Wtorek
A4: 23-03-2013 | B4: 3.9 | E4: Marzec | F4: Środa
A5: 24-03-2013 | B5: 3.8 | C5: 28m:03s | D5: 7:22 min/km | E5: Marzec | F5: Czwartek
A6: 26-03-2013 | B6: 3.75 | E6: Marzec | F6: Piątek
A7: 28-03-2013 | B7: 1.14 | C7: 7m:17s | D7: 6:23 min/k | E7: Marzec | F7: Sobota
A8: 28-03-2013 | B8: 2.96 | C8: 17m:07s | D8: 5:47 min/km | E8: Marzec | F8: Niedziela
A9: 2-04-2013 | B9: 7.7 | E9: Kwiecień
A10: 4-04-2013 | B10: 4.05 | E10: Kwiecień

Sheet margottst
A1: Data biegu | B1: Przebiegnięte km | C1: Czas biegu | D1: Średnia prędkość | E1: Miesiąc | F1: Dni tygodnia | G1: Łącznie przebiegniętych kilometrów | H1: z 6259,6 km
A2: 3-03-2013 | B2: 9.3 | E2: Marzec | F2: Poniedziałek | G2: =SUM(B2:B26) -> 9.3
F3: Wtorek
F4: Środa
F5: Czwartek
F6: Piątek
F7: Sobota
F8: Niedziela

Sheet Mario_lgw
A1: Data biegu | B1: Przebiegnięte km | C1: Czas biegu | D1: Średnia prędkość | E1: Miesiąc | F1: Dni tygodnia | G1: Łącznie przebiegniętych kilometrów | H1: z 6259,6 km
A2: 4-04-2013 | B2: 8.81 | E2: Kwiecień | F2: Poniedziałek | G2: =SUM(B2:B21) -> 8.81
F3: Wtorek
F4: Środa
F5: Czwartek
F6: Piątek
F7: Sobota
F8: Niedziela

Sheet Mariusz_Drugi
A1: Data biegu | B1: Przebiegnięte km | C1: Czas biegu | D1: Średnia prędkość | E1: Miesiąc | F1: Dni tygodnia | G1: Łącznie przebiegniętych kilometrów | H1: z 6259,6 km
A2: 18-03-2013 | B2: 3.94 | C2: 25m:32s | D2: 6:29 min/km | E2: Marzec | F2: Poniedziałek | G2: =SUM(B2:B22) -> 3.94
F3: Wtorek
F4: Środa
F5: Czwartek
F6: Piątek
F7: Sobota
F8: Niedziela

Sheet Markos90
A1: Data biegu | B1: Przebiegnięte km | C1: Czas biegu | D1: Średnia prędkość | E1: Miesiąc | F1: Dni tygodnia | G1: Łącznie przebiegniętych kilometrów | H1: z 6259,6 km
A2: 5-03-2013 | B2: 3.26 | E2: Marzec | F2: Poniedziałek | G2: =SUM(B2:B25) -> 3.26
F3: Wtorek
F4: Środa
F5: Czwartek
F6: Piątek
F7: Sobota
F8: Niedziela

Sheet Marmite
A1: Data biegu | B1: Przebiegnięte km | C1: Czas biegu | D1: Średnia prędkość | E1: Miesiąc | F1: Dni tygodnia | G1: Łącznie przebiegniętych kilometrów | H1: z 6259,6 km
A2: 2-03-2013 | B2: 2 | E2: Marzec | F2: Poniedziałek | G2: =SUM(B2:B23) -> 2
F3: Wtorek
F4: Środa
F5: Czwartek
F6: Piątek
F7: Sobota
F8: Niedziela

Sheet maslan63
A1: Data biegu | B1: Przebiegnięte km | C1: Czas biegu | D1: Średnia prędkość | E1: Miesiąc | F1: Dni tygodnia | G1: Łącznie przebiegniętych kilometrów | H1: z 6259,6 km
A2: 9-03-2013 | B2: 2.92 | E2: Marzec | F2: Poniedziałek | G2: =SUM(B2:B20) -> 33.95
A3: 10-03-2013 | B3: 3.52 | E3: Marzec | F3: Wtorek
A4: 11-03-2013 | B4: 3.43 | E4: Marzec | F4: Środa
A5: 12-03-2013 | B5: 4.02 | E5: Marzec | F5: Czwartek
A6: 14-03-2013 | B6: 4.02 | E6: Marzec | F6: Piątek
A7: 15-03-2013 | B7: 4.02 | E7: Marzec | F7: Sobota
A8: 18-03-2013 | B8: 4 | E8: Marzec | F8: Niedziela
A9: 25-03-2013 | B9: 4 | E9: Marzec
A10: 4-04-2013 | B10: 4.02 | E10: Kwiecień

Sheet Masterczulki
A1: Data biegu | B1: Przebiegnięte km | C1: Czas biegu | D1: Średnia prędkość | E1: Miesiąc | F1: Dni tygodnia | G1: Łącznie przebiegniętych kilometrów | H1: z 6259,6 km
A2: 27-02-2013 | B2: 3 | E2: Luty | F2: Poniedziałek | G2: =SUM(B2:B25) -> 82.37
A3: 1-03-2013 | B3: 5.01 | C3: 33m:42s | D3: 6:43 min/km | E3: Marzec | F3: Wtorek
A4: 3-03-2013 | B4: 3 | E4: Marzec | F4: Środa
A5: 5-03-2013 | B5: 3.23 | C5: 20m:02s | D5: 6:11 min/km | E5: Marzec | F5: Czwartek
A6: 7-03-2013 | B6: 3 | E6: Marzec | F6: Piątek
A7: 8-03-2013 | B7: 5 | E7: Marzec | F7: Sobota
A8: 12-03-2013 | B8: 6.67 | C8: 43m:00s | D8: 6:27 min/km | E8: Marzec | F8: Niedziela
A9: 14-03-2013 | B9: 6.13 | C9: 43m:57s | D9: 7:10 min/km | E9: Marzec
A10: 16-03-2013 | B10: 7.66 | C10: 50m:49s | D10: 6:38 min/km | E10: Marzec
A11: 18-03-2013 | B11: 5.41 | C11: 36m:24s | D11: 6:44 min/km | E11: Marzec
A12: 19-03-2013 | B12: 7.88 | C12: 54m:13s | D12: 6:53 min/km | E12: Marzec
A13: 21-03-2013 | B13: 7.9 | C13: 50m:25s | D13: 6:23 min/km | E13: Marzec
A14: 23-03-2013 | B14: 5.68 | E14: Marzec
A15: 1-04-2013 | B15: 3.09 | E15: Kwiecień
A16: 3-04-2013 | B16: 4.58 | C16: 30m:00s | E16: Kwiecień
A17: 4-04-2013 | B17: 5.13 | C17: 32m:19s | D17: 6:18 min/km | E17: Kwiecień

Sheet mBartek89
A1: Data biegu | B1: Przebiegnięte km | C1: Czas biegu | D1: Średnia prędkość | E1: Miesiąc | F1: Dni tygodnia | G1: Łącznie przebiegniętych kilometrów | H1: z 6259,6 km
A2: 11-03-2013 | B2: 4 | E2: Marzec | F2: Poniedziałek | G2: =SUM(B2:B25) -> 8
A3: 12-03-2013 | B3: 4 | E3: Marzec | F3: Wtorek
F4: Środa
F5: Czwartek
F6: Piątek
F7: Sobota
F8: Niedziela

Sheet mechaniczny_kurak
A1: Data biegu | B1: Przebiegnięte km | C1: Czas biegu | D1: Średnia prędkość | E1: Miesiąc | F1: Dni tygodnia | G1: Łącznie przebiegniętych kilometrów | H1: z 6259,6 km
A2: 10-03-2013 | B2: 5.3 | E2: Marzec | F2: Poniedziałek | G2: =SUM(B2:B21) -> 5.3
F3: Wtorek
F4: Środa
F5: Czwartek
F6: Piątek
F7: Sobota
F8: Niedziela

Sheet Meffx
A1: Data biegu | B1: Przebiegnięte km | C1: Czas biegu | D1: Średnia prędkość | E1: Miesiąc | F1: Dni tygodnia | G1: Łącznie przebiegniętych kilometrów | H1: z 6259,6 km
A2: 4-03-2013 | B2: 10.2 | C2: 1g:04m:23s | D2: 6:19 min/km | E2: Marzec | F2: Poniedziałek | G2: =SUM(B2:B21) -> 101.42
A3: 5-03-2013 | B3: 9.62 | C3: 59m:57s | D3: 6:14 min/km | E3: Marzec | F3: Wtorek
A4: 7-03-2013 | B4: 13.2 | C4: 1g:18m:11s | D4: 5:55 min/km | E4: Marzec | F4: Środa
A5: 8-03-2013 | B5: 3.4 | E5: Marzec | F5: Czwartek
A6: 12-03-2013 | B6: 9 | C6: 30m:00s | D6: 6:00 min/km | E6: Marzec | F6: Piątek
A7: 14-03-2013 | B7: 10 | E7: Marzec | F7: Sobota
A8: 15-03-2013 | B8: 8 | E8: Marzec | F8: Niedziela
A9: 18-03-2013 | B9: 4 | C9: 42m:00s | D9: 6:00 min/km | E9: Marzec
A10: 19-03-2013 | B10: 10 | C10: 1g:00m:00s | D10: 6:00 min/km | E10: Marzec
A11: 20-03-2013 | B11: 5 | C11: 32m:00s | D11: 6:24 min/km | E11: Marzec
A12: 21-03-2013 | B12: 7 | C12: 42m:00s | D12: 6:00 min/km | E12: Marzec
A13: 28-03-2013 | B13: 12 | E13: Marzec

Sheet mejsieq
A1: Data biegu | B1: Przebiegnięte km | C1: Czas biegu | D1: Średnia prędkość | E1: Miesiąc | F1: Dni tygodnia | G1: Łącznie przebiegniętych kilometrów | H1: z 6259,6 km
A2: 27-02-2013 | B2: 3.17 | C2: 30m:24s | D2: 9:35 min/km | E2: Luty | F2: Poniedziałek | G2: =SUM(B2:B16) -> 3.17
F3: Wtorek
F4: Środa
F5: Czwartek
F6: Piątek
F7: Sobota
F8: Niedziela

Sheet michal__q
A1: Data biegu | B1: Przebiegnięte km | C1: Czas biegu | D1: Średnia prędkość | E1: Miesiąc | F1: Dni tygodnia | G1: Łącznie przebiegniętych kilometrów | H1: z 6259,6 km
A2: 5-03-2013 | B2: 5 | E2: Marzec | F2: Poniedziałek | G2: =SUM(B2:B23) -> 5
F3: Wtorek
F4: Środa
F5: Czwartek
F6: Piątek
F7: Sobota
F8: Niedziela

Sheet mizaj
A1: Data biegu | B1: Przebiegnięte km | C1: Czas biegu | D1: Średnia prędkość | E1: Miesiąc | F1: Dni tygodnia | G1: Łącznie przebiegniętych kilometrów | H1: z 6259,6 km
A2: 27-02-2013 | B2: 11.3 | E2: Luty | F2: Poniedziałek | G2: =SUM(B2:B26) -> 251.21
A3: 28-02-2013 | B3: 10.1 | E3: Luty | F3: Wtorek
A4: 2-03-2013 | B4: 35.5 | C4: 03g:14m:59s | D4: 5:34 min/km | E4: Marzec | F4: Środa
A5: 4-03-2013 | B5: 6.12 | C5: 29m:56s | D5: 4:53 min/km | E5: Marzec | F5: Czwartek
A6: 6-03-2013 | B6: 15.21 | C6: 1g:15m:24s | D6: 4:57 min/km | E6: Marzec | F6: Piątek
A7: 9-03-2013 | B7: 15.05 | C7: 1g:07m:15s | D7: 4:28 min/km | E7: Marzec | F7: Sobota
A8: 10-03-2013 | B8: 6.66 | C8: 35m:21s | D8: 5:19 min/km | E8: Marzec | F8: Niedziela
A9: 10-03-2013 | B9: 8.6 | C9: 44m:46s | D9: 5:13 min/km | E9: Marzec
A10: 11-03-2013 | B10: 17.1 | C10: 1g:31m:19s | D10: 5:21 min/km | E10: Marzec
A11: 12-03-2013 | B11: 15.2 | C11: 1g:25m:19s | D11: 5:37 min/k | E11: Marzec
A12: 14-03-2013 | B12: 18.1 | C12: 1g:38m:03s | D12: 5:25 min/km | E12: Marzec
A13: 15-03-2013 | B13: 7.1 | C13: 40m:03s | D13: 5:39 min/km | E13: Marzec
A14: 16-03-2013 | B14: 10 | C14: 58m:29s | D14: 5:51 min/km | E14: Marzec
A15: 17-03-2013 | B15: 20 | C15: 1g:39m:11s | D15: 4:57 min/km | E15: Marzec
A16: 18-03-2013 | B16: 5 | C16: 26m:44s | D16: 5:21 min/km | E16: Marzec
A17: 21-03-2013 | B17: 10 | C17: 52m:00s | D17: 5:12 min/km | E17: Marzec
A18: 24-03-2013 | B18: 21.3 | C18: 1g:33m:20s | D18: 4:23 min/km | E18: Marzec
A19: 26-03-2013 | B19: 10.27 | C19: 1g:00m:01s | D19: 5:51 min/km | E19: Marzec
A20: 4-04-2013 | B20: 5 | C20: 29m:00s | D20: 5:48 min/km | E20: Kwiecień
A21: 5-04-2013 | B21: 3.6 | C21: 18m:53s | D21: 5:15 min/km | E21: Kwiecień

Sheet mocher_kg
A1: Data biegu | B1: Przebiegnięte km | C1: Czas biegu | D1: Średnia prędkość | E1: Miesiąc | F1: Dni tygodnia | G1: Łącznie przebiegniętych kilometrów | H1: z 6259,6 km
A2: 27-02-2013 | B2: 2.11 | C2: 12m:37s | D2: 5,58 min/km | E2: Luty | F2: Poniedziałek | G2: =SUM(B2:B19) -> 43.34
A3: 28-02-2013 | B3: 2.3 | C3: 12m:36s | D3: 5:28 min/km | E3: Luty | F3: Wtorek
A4: 4-03-2013 | B4: 2 | C4: 12m:41s | D4: 6:09 min/km | E4: Marzec | F4: Środa
A5: 5-03-2013 | B5: 6.26 | C5: 39m:03s | D5: 6:14 min/km | E5: Marzec | F5: Czwartek
A6: 6-03-2013 | B6: 4.12 | C6: 24m:23s | D6: 5:55 min/km | E6: Marzec | F6: Piątek
A7: 8-03-2013 | B7: 4.2 | C7: 21m:41s | D7: 5:10 min/km | E7: Marzec | F7: Sobota
A8: 13-03-2013 | B8: 2 | E8: Marzec | F8: Niedziela
A9: 14-03-2013 | B9: 10 | C9: 59m:06s | D9: 5:48 min/km | E9: Marzec
A10: 18-03-2013 | B10: 4 | C10: 23m:21s | D10: 5:37 min/km | E10: Marzec
A11: 20-03-2013 | B11: 2.5 | C11: 13m:22s | D11: 5:21 min/km | E11: Marzec
A12: 24-03-2013 | B12: 3.85 | C12: 24m:30s | D12: 6:22 min/k | E12: Marzec

Sheet moss4d
A1: Data biegu | B1: Przebiegnięte km | C1: Czas biegu | D1: Średnia prędkość | E1: Miesiąc | F1: Dni tygodnia | G1: Łącznie przebiegniętych kilometrów | H1: z 6259,6 km
A2: 10-03-2013 | B2: 4.3 | C2: 23m:46s | D2: 8:54 min/mi | E2: Marzec | F2: Poniedziałek | G2: =SUM(B2:B23) -> 30
A3: 17-03-2013 | B3: 4.7 | C3: 26m:41s | D3: 9:04 min/mi | E3: Marzec | F3: Wtorek
A4: 24-03-2013 | B4: 10.6 | C4: 1g:06m:19s | D4: 10:06 min/mi | E4: Marzec | F4: Środa
A5: 5-04-2013 | B5: 10.4 | C5: 57m:25s | D5: 8:52 min/mi | E5: Kwiecień | F5: Czwartek
F6: Piątek
F7: Sobota
F8: Niedziela

Sheet m_pietrzak
A1: Data biegu | B1: Przebiegnięte km | C1: Czas biegu | D1: Średnia prędkość | E1: Miesiąc | F1: Dni tygodnia | G1: Łącznie przebiegniętych kilometrów | H1: z 6259,6 km
A2: 31-03-2013 | B2: 14.29 | E2: Marzec | F2: Poniedziałek | G2: =SUM(B2:B24) -> 14.29
F3: Wtorek
F4: Środa
F5: Czwartek
F6: Piątek
F7: Sobota
F8: Niedziela

Sheet NaNiczymSieNieZnam
A1: Data biegu | B1: Przebiegnięte km | C1: Czas biegu | D1: Średnia prędkość | E1: Miesiąc | F1: Dni tygodnia | G1: Łącznie przebiegniętych kilometrów | H1: z 6259,6 km
A2: 17-03-2013 | B2: 8.8 | E2: Marzec | F2: Poniedziałek | G2: =SUM(B2:B16) -> 8.8
F3: Wtorek
F4: Środa
F5: Czwartek
F6: Piątek
F7: Sobota
F8: Niedziela

Sheet necropoleis
A1: Data biegu | B1: Przebiegnięte km | C1: Czas biegu | D1: Średnia prędkość | E1: Miesiąc | F1: Dni tygodnia | G1: Łącznie przebiegniętych kilometrów | H1: z 6259,6 km
A2: 27-02-2013 | B2: 5 | E2: Luty | F2: Poniedziałek | G2: =SUM(B2:B23) -> 43.67
A3: 4-03-2013 | B3: 4.2 | E3: Marzec | F3: Wtorek
A4: 6-03-2013 | B4: 5.9 | E4: Marzec | F4: Środa
A5: 8-03-2013 | B5: 7.4 | C5: 31m:34s | D5: 12:02 min/km | E5: Marzec | F5: Czwartek
A6: 12-03-2013 | B6: 9.76 | E6: Marzec | F6: Piątek
A7: 14-03-2013 | B7: 11.41 | E7: Marzec | F7: Sobota
F8: Niedziela

Sheet Nered
A1: Data biegu | B1: Przebiegnięte km | C1: Czas biegu | D1: Średnia prędkość | E1: Miesiąc | F1: Dni tygodnia | G1: Łącznie przebiegniętych kilometrów | H1: z 6259,6 km
A2: 28-02-2013 | B2: 13.42 | C2: 1g:12m:06s | D2: 5:22 min/km | E2: Luty | F2: Poniedziałek | G2: =SUM(B2:B25) -> 13.42
F3: Wtorek
F4: Środa
F5: Czwartek
F6: Piątek
F7: Sobota
F8: Niedziela

Sheet nerqus
A1: Data biegu | B1: Przebiegnięte km | C1: Czas biegu | D1: Średnia prędkość | E1: Miesiąc | F1: Dni tygodnia | G1: Łącznie przebiegniętych kilometrów | H1: z 6259,6 km
A2: 5-03-2013 | B2: 4.9 | E2: Marzec | F2: Poniedziałek | G2: =SUM(B2:B27) -> 4.9
F3: Wtorek
F4: Środa
F5: Czwartek
F6: Piątek
F7: Sobota
F8: Niedziela

Sheet noway
A1: Data biegu | B1: Przebiegnięte km | C1: Czas biegu | D1: Średnia prędkość | E1: Miesiąc | F1: Dni tygodnia | G1: Łącznie przebiegniętych kilometrów | H1: z 6259,6 km
A2: 26-02-2013 | B2: 6 | E2: Luty | F2: Poniedziałek | G2: =SUM(B2:B24) -> 6
F3: Wtorek
F4: Środa
F5: Czwartek
F6: Piątek
F7: Sobota
F8: Niedziela

Sheet Ogoor
A1: Data biegu | B1: Przebiegnięte km | C1: Czas biegu | D1: Średnia prędkość | E1: Miesiąc | F1: Dni tygodnia | G1: Łącznie przebiegniętych kilometrów | H1: z 6259,6 km
A2: 3-03-2013 | B2: 9.3 | E2: Marzec | F2: Poniedziałek | G2: =SUM(B2:B34) -> 37.38
A3: 5-03-2013 | B3: 9.48 | C3: 55m:37s | D3: 05:52 min/km | E3: Marzec | F3: Wtorek
A4: 9-03-2013 | B4: 10 | E4: Marzec | F4: Środa
A5: 14-03-2013 | B5: 4.3 | E5: Marzec | F5: Czwartek
A6: 15-03-2013 | B6: 4.3 | E6: Marzec | F6: Piątek
F7: Sobota
F8: Niedziela
Q31: Data biegu | R31: Przebiegnięte km | S31: Czas biegu | T31: Średnia prędkość | U31: Miesiąc | V31: Dni tygodnia | W31: Łącznie przebiegniętych kilometrów | X31: z 6259,6 km
V32: Poniedziałek
V33: Wtorek
V34: Środa
V35: Czwartek
V36: Piątek
V37: Sobota
V38: Niedziela

Sheet paprocyniok
A1: Data biegu | B1: Przebiegnięte km | C1: Czas biegu | D1: Średnia prędkość | E1: Miesiąc | F1: Dni tygodnia | G1: Łącznie przebiegniętych kilometrów | H1: z 6259,6 km
A2: 27-02-2013 | B2: 7.26 | C2: 52m:47s | D2: 7:16 min/km | E2: Luty | F2: Poniedziałek | G2: =SUM(B2:B22) -> 45.33
A3: 2-03-2013 | B3: 7.47 | C3: 51m:16s | D3: 6:52 min/km | E3: Marzec | F3: Wtorek
A4: 3-03-2013 | B4: 7.31 | C4: 55m:56s | D4: 7:39 min/km | E4: Marzec | F4: Środa
A5: 9-03-2013 | B5: 7.89 | C5: 59m:09s | D5: 7:30 min/km | E5: Marzec | F5: Czwartek
A6: 10-03-2013 | B6: 7.62 | C6: 1g:01m:24s | D6: 8:03 min/km | E6: Marzec | F6: Piątek
A7: 17-03-2013 | B7: 7.78 | C7: 1g:01m:04s | D7: 7:51 min/km | E7: Marzec | F7: Sobota
F8: Niedziela

Sheet Patres
A1: Data biegu | B1: Przebiegnięte km | C1: Czas biegu | D1: Średnia prędkość | E1: Miesiąc | F1: Dni tygodnia | G1: Łącznie przebiegniętych kilometrów | H1: z 6259,6 km
A2: 5-03-2013 | B2: 10.3 | E2: Marzec | F2: Poniedziałek | G2: =SUM(B2:B20) -> 17.6
A3: 7-03-2013 | B3: 7.3 | E3: Marzec | F3: Wtorek
F4: Środa
F5: Czwartek
F6: Piątek
F7: Sobota
F8: Niedziela

Sheet paweel
A1: Data biegu | B1: Przebiegnięte km | C1: Czas biegu | D1: Średnia prędkość | E1: Miesiąc | F1: Dni tygodnia | G1: Łącznie przebiegniętych kilometrów | H1: z 6259,6 km
A2: 26-03-2013 | B2: 5.2 | C2: 30m:53s | D2: 5:56 min/km | E2: Marzec | F2: Poniedziałek | G2: =SUM(B2:B23) -> 5.2
F3: Wtorek
F4: Środa
F5: Czwartek
F6: Piątek
F7: Sobota
F8: Niedziela

Sheet pawlakppp
A1: Data biegu | B1: Przebiegnięte km | C1: Czas biegu | D1: Średnia prędkość | E1: Miesiąc | F1: Dni tygodnia | G1: Łącznie przebiegniętych kilometrów | H1: z 6259,6 km
A2: 9-03-2013 | B2: 6.5 | E2: Marzec | F2: Poniedziałek | G2: =SUM(B2:B21) -> 20.75
A3: 10-03-2013 | B3: 4.5 | E3: Marzec | F3: Wtorek
A4: 16-03-2013 | B4: 4.5 | E4: Marzec | F4: Środa
A5: 17-03-2013 | B5: 5.25 | E5: Marzec | F5: Czwartek
F6: Piątek
F7: Sobota
F8: Niedziela

Sheet peradon
A1: Data biegu | B1: Przebiegnięte km | C1: Czas biegu | D1: Średnia prędkość | E1: Miesiąc | F1: Dni tygodnia | G1: Łącznie przebiegniętych kilometrów | H1: z 6259,6 km
A2: 27-02-2013 | B2: 12.3 | C2: 1g:01m:30s | D2: 5:00 min/km | E2: Luty | F2: Poniedziałek | G2: =SUM(B2:B30) -> 294.16
A3: 28-02-2013 | B3: 15.55 | C3: 1g:14m:59s | D3: 4:49 min/km | E3: Luty | F3: Wtorek
A4: 2-03-2013 | B4: 9.7 | C4: zbiegiemnatury | D4: zbiegiemnatury | E4: Marzec | F4: Środa
A5: 3-03-2013 | B5: 38.41 | C5: 2g:49m:11s | D5: 5:05 min/km | E5: Marzec | F5: Czwartek
A6: 5-03-2013 | B6: 15.39 | C6: 55m:08s | D6: 4:22 min/km | E6: Marzec | F6: Piątek
A7: 6-03-2013 | B7: 12.85 | C7: 1g:02m:51s | D7: 4:53 min/km | E7: Marzec | F7: Sobota
A8: 7-03-2013 | B8: 16.8 | C8: 1g:22m:47s | D8: 4:56 min/km | E8: Marzec | F8: Niedziela
A9: 9-03-2013 | B9: 20.36 | C9: 1g:39m:47s | D9: 4:54 min/km | E9: Marzec
A10: 10-03-2013 | B10: 32.26 | C10: 2g:36m:48s | D10: 5:11 min/km | E10: Marzec
A11: 12-03-2013 | B11: 15 | C11: 1g:12m:16s | D11: 4:49 min/km | E11: Marzec
A12: 13-03-2013 | B12: 11.57 | C12: 54m:04s | D12: 4:40 min/km | E12: Marzec
A13: 13-03-2013 | B13: 2.26 | C13: 12m:33s | D13: 5:34 min/km | E13: Marzec
A14: 15-03-2013 | B14: 4.5 | C14: 22m:35s | D14: 5:01 min/km | E14: Marzec
A15: 16-03-2013 | B15: 10 | C15: 36m:30s | D15: 3:39 min/km | E15: Marzec
A16: 17-03-2013 | B16: 31.7 | C16: 2g:51m:59s | D16: 5:26 min/km | E16: Marzec
A17: 19-03-2013 | B17: 13.54 | C17: 1g:09m:45s | D17: 5:09 min/km | E17: Marzec
A18: 21-03-2013 | B18: 15.1 | C18: 1g:11m:08s | D18: 4:43 min/km | E18: Marzec
A19: 23-03-2013 | B19: 5 | C19: 20m:47s | D19: 4:04 min/km | E19: Marzec
A20: 5-04-2013 | B20: 4.27 | C20: 18m:18s | D20: 4:17 min/km | E20: Kwiecień
A21: 6-04-2013 | B21: 7.6 | E21: Kwiecień

Sheet piasek43
A1: Data biegu | B1: Przebiegnięte km | C1: Czas biegu | D1: Średnia prędkość | E1: Miesiąc | F1: Dni tygodnia | G1: Łącznie przebiegniętych kilometrów | H1: z 6259,6 km
A2: 23-03-2013 | B2: 6.5 | E2: Marzec | F2: Poniedziałek | G2: =SUM(B2:B16) -> 54.7
A3: 24-03-2013 | B3: 9.5 | E3: Marzec | F3: Wtorek
A4: 26-03-2013 | B4: 4.5 | E4: Marzec | F4: Środa
A5: 29-03-2013 | B5: 4.5 | E5: Marzec | F5: Czwartek
A6: 30-03-2013 | B6: 10.7 | E6: Marzec | F6: Piątek
A7: 1-04-2013 | B7: 6 | E7: Kwiecień | F7: Sobota
A8: 2-04-2013 | B8: 6.5 | E8: Kwiecień | F8: Niedziela
A9: 4-04-2013 | B9: 6.5 | E9: Kwiecień

Sheet PierwszyOstatniraz
A1: Data biegu | B1: Przebiegnięte km | C1: Czas biegu | D1: Średnia prędkość | E1: Miesiąc | F1: Dni tygodnia | G1: Łącznie przebiegniętych kilometrów | H1: z 6259,6 km
A2: 26-02-2013 | B2: 5 | E2: Luty | F2: Poniedziałek | G2: =SUM(B2:B24) -> 80.59
A3: 27-02-2013 | B3: 5 | E3: Luty | F3: Wtorek
A4: 4-03-2013 | B4: 6 | E4: Marzec | F4: Środa
A5: 8-03-2013 | B5: 5 | E5: Marzec | F5: Czwartek
A6: 14-03-2013 | B6: 10 | C6: 1g:00m:00s | D6: 6:00 min/km | E6: Marzec | F6: Piątek
A7: 15-03-2013 | B7: 6.04 | C7: 34m:02s | D7: 5:38 min/km | E7: Marzec | F7: Sobota
A8: 18-03-2013 | B8: 7.36 | C8: 43m:03s | D8: 5:51 min/km | E8: Marzec | F8: Niedziela
A9: 29-03-2013 | B9: 5 | E9: Marzec
A10: 30-03-2013 | B10: 6 | E10: Marzec
A11: 1-04-2013 | B11: 7.85 | E11: Kwiecień
A12: 4-04-2013 | B12: 10.24 | E12: Kwiecień
A13: 5-04-2013 | B13: 7.1 | E13: Kwiecień

Sheet poprostuMarcin
A1: Data biegu | B1: Przebiegnięte km | C1: Czas biegu | D1: Średnia prędkość | E1: Miesiąc | F1: Dni tygodnia | G1: Łącznie przebiegniętych kilometrów | H1: z 6259,6 km
A2: 4-03-2013 | B2: 2.29 | C2: 13m:15s | D2: 5:47 min/km | E2: Marzec | F2: Poniedziałek | G2: =SUM(B2:B24) -> 5.48
A3: 4-03-2013 | B3: 1.29 | C3: 6m:43s | D3: 5:13 min/km | E3: Marzec | F3: Wtorek
A4: 5-03-2013 | B4: 1.9 | C4: 10m:19s | D4: 5:34 min/km | E4: Marzec | F4: Środa
F5: Czwartek
F6: Piątek
F7: Sobota
F8: Niedziela

Sheet ppj
A1: Data biegu | B1: Przebiegnięte km | C1: Czas biegu | D1: Średnia prędkość | E1: Miesiąc | F1: Dni tygodnia | G1: Łącznie przebiegniętych kilometrów | H1: z 6259,6 km
A2: 2-03-2013 | B2: 2.83 | E2: Marzec | F2: Poniedziałek | G2: =SUM(B2:B24) -> 6.86
A3: 3-03-2013 | B3: 4.03 | E3: Marzec | F3: Wtorek
F4: Środa
F5: Czwartek
F6: Piątek
F7: Sobota
F8: Niedziela

Sheet Pyrakus
A1: Data biegu | B1: Przebiegnięte km | C1: Czas biegu | D1: Średnia prędkość | E1: Miesiąc | F1: Dni tygodnia | G1: Łącznie przebiegniętych kilometrów | H1: z 6259,6 km
A2: 27-02-2013 | B2: 7 | E2: Luty | F2: Poniedziałek | G2: =SUM(B2:B23) -> 7
F3: Wtorek
F4: Środa
F5: Czwartek
F6: Piątek
F7: Sobota
F8: Niedziela

Sheet rexio
A1: Data biegu | B1: Przebiegnięte km | C1: Czas biegu | D1: Średnia prędkość | E1: Miesiąc | F1: Dni tygodnia | G1: Łącznie przebiegniętych kilometrów | H1: z 6259,6 km
A2: 2-03-2013 | B2: 5.23 | E2: Marzec | F2: Poniedziałek | G2: =SUM(B2:B22) -> 19.78
A3: 4-03-2013 | B3: 5.24 | E3: Marzec | F3: Wtorek
A4: 26-03-2013 | B4: 5.31 | E4: Marzec | F4: Środa
A5: 3-04-2013 | B5: 4 | E5: Kwiecień | F5: Czwartek
F6: Piątek
F7: Sobota
F8: Niedziela

Sheet Rubens
A1: Data biegu | B1: Przebiegnięte km | C1: Czas biegu | D1: Średnia prędkość | E1: Miesiąc | F1: Dni tygodnia | G1: Łącznie przebiegniętych kilometrów | H1: z 6259,6 km
A2: 3-03-2013 | B2: 4.19 | C2: 28m:01s | D2: 6:41 min/km | E2: Marzec | F2: Poniedziałek | G2: =SUM(B2:B23) -> 35.81
A3: 5-03-2013 | B3: 4.5 | C3: 22m:11s | E3: Marzec | F3: Wtorek
A4: 17-03-2013 | B4: 15 | C4: 1g:28m:32s | D4: 5:52 min/km | E4: Marzec | F4: Środa
A5: 24-03-2013 | B5: 12.12 | C5: 1g:25m:18s | D5: 7:02 min/km | E5: Marzec | F5: Czwartek
F6: Piątek
F7: Sobota
F8: Niedziela

Sheet sayane
A1: Data biegu | B1: Przebiegnięte km | C1: Czas biegu | D1: Średnia prędkość | E1: Miesiąc | F1: Dni tygodnia | G1: Łącznie przebiegniętych kilometrów | H1: z 6259,6 km
A2: 1-03-2013 | B2: 2.3 | E2: Marzec | F2: Poniedziałek | G2: =SUM(B2:B23) -> 48.74
A3: 4-03-2013 | B3: 5.39 | E3: Marzec | F3: Wtorek
A4: 6-03-2013 | B4: 5.26 | E4: Marzec | F4: Środa
A5: 8-03-2013 | B5: 5.26 | E5: Marzec | F5: Czwartek
A6: 11-03-2013 | B6: 4.05 | C6: 23m:11s | D6: 5:44 min/km | E6: Marzec | F6: Piątek
A7: 12-03-2013 | B7: 4.17 | C7: 23m:59s | D7: 5:45 min/km | E7: Marzec | F7: Sobota
A8: 15-03-2013 | B8: 4.14 | C8: 24m:03s | D8: 5:48 min/km | E8: Marzec | F8: Niedziela
A9: 15-03-2013 | B9: 0.51 | E9: Marzec
A10: 18-03-2013 | B10: 5.02 | C10: 28m:26s | D10: 5:40 min/km | E10: Marzec
A11: 19-03-2013 | B11: 2.31 | E11: Marzec
A12: 20-03-2013 | B12: 2.31 | C12: 12:04:00 | D12: 5:13 min/km | E12: Marzec
A13: 30-03-2013 | B13: 2.63 | E13: Marzec
A14: 4-04-2013 | B14: 5.39 | E14: Kwiecień

Sheet Schwarz_Charakter
A1: Data biegu | B1: Przebiegnięte km | C1: Czas biegu | D1: Średnia prędkość | E1: Miesiąc | F1: Dni tygodnia | G1: Łącznie przebiegniętych kilometrów | H1: z 6259,6 km
A2: 27-02-2013 | B2: 5.13 | E2: Luty | F2: Poniedziałek | G2: =SUM(B2:B20) -> 107.07
A3: 28-02-2013 | B3: 7.52 | E3: Luty | F3: Wtorek
A4: 2-03-2013 | B4: 9.87 | E4: Marzec | F4: Środa
A5: 4-03-2013 | B5: 9.22 | E5: Marzec | F5: Czwartek
A6: 5-03-2013 | B6: 6.05 | E6: Marzec | F6: Piątek
A7: 6-03-2013 | B7: 8.51 | E7: Marzec | F7: Sobota
A8: 15-03-2013 | B8: 5.54 | E8: Marzec | F8: Niedziela
A9: 19-03-2013 | B9: 15.17 | C9: 1g:32m:03s | D9: 6:04 min/km | E9: Marzec
A10: 22-03-2013 | B10: 18.19 | C10: 1g:50m:02s | D10: 6:03 min/km | E10: Marzec
A11: 24-03-2013 | B11: 5.41 | C11: 47m:22s | D11: 8:45 min/km | E11: Marzec
A12: 24-03-2013 | B12: 1.54 | C12: 12m:13s | D12: 7:56 min/km | E12: Marzec
A13: 27-03-2013 | B13: 11.6 | C13: 1g:10m:47s | D13: 6:06 min/km | E13: Marzec
A14: 4-04-2013 | B14: 1.63 | C14: 10m:45s | D14: 6:34 min/km | E14: Kwiecień
A15: 4-04-2013 | B15: 1.69 | C15: 11m:06s | D15: 6:34 min/km | E15: Kwiecień

Sheet Scorpio412
A1: Data biegu | B1: Przebiegnięte km | C1: Czas biegu | D1: Średnia prędkość | E1: Miesiąc | F1: Dni tygodnia | G1: Łącznie przebiegniętych kilometrów | H1: z 6259,6 km
A2: 20-03-2013 | B2: 4 | E2: Marzec | F2: Poniedziałek | G2: =SUM(B2:B26) -> 8.2
A3: 25-03-2013 | B3: 4.2 | E3: Marzec | F3: Wtorek
F4: Środa
F5: Czwartek
F6: Piątek
F7: Sobota
F8: Niedziela

Sheet SiekYersky
A1: Data biegu | B1: Przebiegnięte km | C1: Czas biegu | D1: Średnia prędkość | E1: Miesiąc | F1: Dni tygodnia | G1: Łącznie przebiegniętych kilometrów | H1: z 6259,6 km
A2: 27-02-2013 | B2: 5.49 | C2: 31m:37s | D2: 5:45 min/km | E2: Luty | F2: Poniedziałek | G2: =SUM(B2:B21) -> 28.32
A3: 28-02-2013 | B3: 2.14 | C3: 10m:20s | D3: 4:50 min/km | E3: Luty | F3: Wtorek
A4: 1-03-2013 | B4: 6.24 | C4: 34m:37s | D4: 5:33 min/km | E4: Marzec | F4: Środa
A5: 4-03-2013 | B5: 6.87 | C5: 31m:07s | D5: 5:29 min/km | E5: Marzec | F5: Czwartek
A6: 5-03-2013 | B6: 7.58 | C6: 41m:51s | D6: 5:31 min/km | E6: Marzec | F6: Piątek
F7: Sobota
F8: Niedziela

Sheet Skurwozaur
A1: Data biegu | B1: Przebiegnięte km | C1: Czas biegu | D1: Średnia prędkość | E1: Miesiąc | F1: Dni tygodnia | G1: Łącznie przebiegniętych kilometrów | H1: z 6259,6 km
A2: 10-03-2013 | B2: 4.3 | C2: 26m:28s | D2: 6:08 min/km | E2: Marzec | F2: Poniedziałek | G2: =SUM(B2:B18) -> 13.65
A3: 17-03-2013 | B3: 5.1 | C3: 31m:23s | D3: 6:09 min/km | E3: Marzec | F3: Wtorek
A4: 31-03-2013 | B4: 4.25 | C4: 27m:23s | D4: 6:27 min/km | E4: Marzec | F4: Środa
F5: Czwartek
F6: Piątek
F7: Sobota
F8: Niedziela

Sheet Smookie
A1: Data biegu | B1: Przebiegnięte km | C1: Czas biegu | D1: Średnia prędkość | E1: Miesiąc | F1: Dni tygodnia | G1: Łącznie przebiegniętych kilometrów | H1: z 6259,6 km
A2: 4-03-2013 | B2: 6 | E2: Marzec | F2: Poniedziałek | G2: =SUM(B2:B24) -> 12
A3: 5-03-2013 | B3: 6 | E3: Marzec | F3: Wtorek
F4: Środa
F5: Czwartek
F6: Piątek
F7: Sobota
F8: Niedziela

Sheet Solitary_Man
A1: Data biegu | B1: Przebiegnięte km | C1: Czas biegu | D1: Średnia prędkość | E1: Miesiąc | F1: Dni tygodnia | G1: Łącznie przebiegniętych kilometrów | H1: z 6259,6 km
A2: 6-03-2013 | B2: 2.8 | E2: Marzec | F2: Poniedziałek | G2: =SUM(B2:B19) -> 16.29
A3: 8-03-2013 | B3: 2.8 | E3: Marzec | F3: Wtorek
A4: 10-03-2013 | B4: 2.63 | E4: Marzec | F4: Środa
A5: 13-03-2013 | B5: 2.46 | E5: Marzec | F5: Czwartek
A6: 20-03-2013 | B6: 2.8 | E6: Marzec | F6: Piątek
A7: 30-03-2013 | B7: 2.8 | E7: Marzec | F7: Sobota
F8: Niedziela

Sheet Sordi
A1: Data biegu | B1: Przebiegnięte km | C1: Czas biegu | D1: Średnia prędkość | E1: Miesiąc | F1: Dni tygodnia | G1: Łącznie przebiegniętych kilometrów | H1: z 6259,6 km
A2: 27-02-2013 | B2: 3.06 | C2: 14m:55s | D2: 05:42 min/km | E2: Luty | F2: Poniedziałek | G2: =SUM(B2:B23) -> 26.65
A3: 2-03-2013 | B3: 5.68 | C3: 28m:53s | D3: 05:05 min/km | E3: Marzec | F3: Wtorek
A4: 5-03-2013 | B4: 7.71 | C4: 34m:48s | D4: 4:40 min/km | E4: Marzec | F4: Środa
A5: 15-03-2013 | B5: 10.2 | C5: 50m:09s | D5: 4:55 min/km | E5: Marzec | F5: Czwartek
F6: Piątek
F7: Sobota
F8: Niedziela

Sheet Splot
A1: Data biegu | B1: Przebiegnięte km | C1: Czas biegu | D1: Średnia prędkość | E1: Miesiąc | F1: Dni tygodnia | G1: Łącznie przebiegniętych kilometrów | H1: z 6259,6 km
A2: 4-03-2013 | B2: 12.03 | E2: Marzec | F2: Poniedziałek | G2: =SUM(B2:B23) -> 110.22
A3: 6-03-2013 | B3: 21.12 | C3: 1g:48m:18s | D3: 5:10 min/km | E3: Marzec | F3: Wtorek
A4: 9-03-2013 | B4: 10.02 | C4: 45m:32s | D4: 4:33 min/km | E4: Marzec | F4: Środa
A5: 16-03-2013 | B5: 15 | C5: 1g:18m:34s | D5: 5:14 min/km | E5: Marzec | F5: Czwartek
A6: 23-03-2013 | B6: 10.02 | E6: Marzec | F6: Piątek
A7: 30-03-2013 | B7: 20.08 | C7: 1g:50m:36s | D7: 5:30 min/km | E7: Marzec | F7: Sobota
A8: 1-04-2013 | B8: 21.95 | C8: 2g:01m:10s | D8: 5:31 min/km | E8: Kwiecień | F8: Niedziela

Sheet stefan_pompka
A1: Data biegu | B1: Przebiegnięte km | C1: Czas biegu | D1: Średnia prędkość | E1: Miesiąc | F1: Dni tygodnia | G1: Łącznie przebiegniętych kilometrów | H1: z 6259,6 km
A2: 5-03-2013 | B2: 11.71 | E2: Marzec | F2: Poniedziałek | G2: =SUM(B2:B25) -> 11.71
F3: Wtorek
F4: Środa
F5: Czwartek
F6: Piątek
F7: Sobota
F8: Niedziela

Sheet stepBYstep
A1: Data biegu | B1: Przebiegnięte km | C1: Czas biegu | D1: Średnia prędkość | E1: Miesiąc | F1: Dni tygodnia | G1: Łącznie przebiegniętych kilometrów | H1: z 6259,6 km
A2: 6-03-2013 | B2: 2.96 | E2: Marzec | F2: Poniedziałek | G2: =SUM(B2:B18) -> 6.15
A3: 8-03-2013 | B3: 3.19 | E3: Marzec | F3: Wtorek
F4: Środa
F5: Czwartek
F6: Piątek
F7: Sobota
F8: Niedziela

Sheet Strzalka
A1: Data biegu | B1: Przebiegnięte km | C1: Czas biegu | D1: Średnia prędkość | E1: Miesiąc | F1: Dni tygodnia | G1: Łącznie przebiegniętych kilometrów | H1: z 6259,6 km
A2: 2-03-2013 | B2: 10.04 | C2: 56m:39s | D2: 5:39 min/km | E2: Marzec | F2: Poniedziałek | G2: =SUM(B2:B28) -> 47.52
A3: 4-03-2013 | B3: 10.94 | C3: 01g:00m:35s | D3: 5:32 min/km | E3: Marzec | F3: Wtorek
A4: 8-03-2013 | B4: 10.98 | C4: 58m:28s | D4: 5:19 min/km | E4: Marzec | F4: Środa
A5: 10-03-2013 | B5: 10.07 | C5: 54m:44s | D5: 5:26 min/km | E5: Marzec | F5: Czwartek
A6: 11-03-2013 | B6: 5.49 | C6: 29m:02s | D6: 5:17 min/km | E6: Marzec | F6: Piątek
F7: Sobota
F8: Niedziela

Sheet surma
A1: Data biegu | B1: Przebiegnięte km | C1: Czas biegu | D1: Średnia prędkość | E1: Miesiąc | F1: Dni tygodnia | G1: Łącznie przebiegniętych kilometrów | H1: z 6259,6 km
A2: 4-03-2013 | B2: 3 | E2: Marzec | F2: Poniedziałek | G2: =SUM(B2:B28) -> 3
F3: Wtorek
F4: Środa
F5: Czwartek
F6: Piątek
F7: Sobota
F8: Niedziela

Sheet sztukamasazu
A1: Data biegu | B1: Przebiegnięte km | C1: Czas biegu | D1: Średnia prędkość | E1: Miesiąc | F1: Dni tygodnia | G1: Łącznie przebiegniętych kilometrów | H1: z 6259,6 km
A2: 27-02-2013 | B2: 6.6 | C2: 36m:17s | D2: 5:29 min/km | E2: Luty | F2: Poniedziałek | G2: =SUM(B2:B18) -> 38.8
A3: 28-02-2013 | B3: 11.2 | C3: 1g:04m:01s | D3: 5:42 min/km | E3: Luty | F3: Wtorek
A4: 17-03-2013 | B4: 21 | C4: 1g:58m:20s | D4: 5:37 min/km | E4: Marzec | F4: Środa
F5: Czwartek
F6: Piątek
F7: Sobota
F8: Niedziela

Sheet szuwarek_mini
A1: Data biegu | B1: Przebiegnięte km | C1: Czas biegu | D1: Średnia prędkość | E1: Miesiąc | F1: Dni tygodnia | G1: Łącznie przebiegniętych kilometrów | H1: z 6259,6 km
A2: 2-03-2013 | B2: 2.4 | E2: Marzec | F2: Poniedziałek | G2: =SUM(B2:B25) -> 2.4
F3: Wtorek
F4: Środa
F5: Czwartek
F6: Piątek
F7: Sobota
F8: Niedziela

Sheet Takumi
A1: Data biegu | B1: Przebiegnięte km | C1: Czas biegu | D1: Średnia prędkość | E1: Miesiąc | F1: Dni tygodnia | G1: Łącznie przebiegniętych kilometrów | H1: z 6259,6 km
A2: 15-03-2013 | B2: 1.37 | E2: Marzec | F2: Poniedziałek | G2: =SUM(B2:B20) -> 85.97
A3: 17-03-2013 | B3: 2.2 | E3: Marzec | F3: Wtorek
A4: 18-03-2013 | B4: 2.9 | E4: Marzec | F4: Środa
A5: 19-03-2013 | B5: 3.05 | E5: Marzec | F5: Czwartek
A6: 20-03-2013 | B6: 3.68 | E6: Marzec | F6: Piątek
A7: 21-03-2013 | B7: 4.11 | E7: Marzec | F7: Sobota
A8: 22-03-2013 | B8: 5.22 | E8: Marzec | F8: Niedziela
A9: 23-03-2013 | B9: 6.34 | E9: Marzec
A10: 24-03-2013 | B10: 5.27 | E10: Marzec
A11: 26-03-2013 | B11: 5.07 | E11: Marzec
A12: 27-03-2013 | B12: 3.21 | E12: Marzec
A13: 29-03-2013 | B13: 5.71 | E13: Marzec
A14: 30-03-2013 | B14: 9.4 | E14: Marzec
A15: 31-03-2013 | B15: 7.35 | E15: Marzec
A16: 2-04-2013 | B16: 4.15 | E16: Kwiecień
A17: 3-04-2013 | B17: 5.44 | E17: Kwiecień
A18: 4-04-2013 | B18: 11.5 | E18: Kwiecień

Sheet Tapirro
A1: Data biegu | B1: Przebiegnięte km | C1: Czas biegu | D1: Średnia prędkość | E1: Miesiąc | F1: Dni tygodnia | G1: Łącznie przebiegniętych kilometrów | H1: z 6259,6 km
A2: 4-03-2013 | B2: 6.4 | E2: Marzec | F2: Poniedziałek | G2: =SUM(B2:B23) -> 9.95
A3: 5-03-2013 | B3: 3.55 | E3: Marzec | F3: Wtorek
F4: Środa
F5: Czwartek
F6: Piątek
F7: Sobota
F8: Niedziela

Sheet teryuu
A1: Data biegu | B1: Przebiegnięte km | C1: Czas biegu | D1: Średnia prędkość | E1: Miesiąc | F1: Dni tygodnia | G1: Łącznie przebiegniętych kilometrów | H1: z 6259,6 km
A2: 4-03-2013 | B2: 13.17 | E2: Marzec | F2: Poniedziałek | G2: =SUM(B2:B26) -> 89.66
A3: 6-03-2013 | B3: 4.56 | E3: Marzec | F3: Wtorek
A4: 8-03-2013 | B4: 7.7 | E4: Marzec | F4: Środa
A5: 9-03-2013 | B5: 7.56 | E5: Marzec | F5: Czwartek
A6: 14-03-2013 | B6: 7.43 | E6: Marzec | F6: Piątek
A7: 16-03-2013 | B7: 7.78 | E7: Marzec | F7: Sobota
A8: 20-03-2013 | B8: 4.08 | E8: Marzec | F8: Niedziela
A9: 23-03-2013 | B9: 10.27 | E9: Marzec
A10: 27-03-2013 | B10: 5 | D10: 5:11 min/km | E10: Marzec
A11: 29-03-2013 | B11: 5 | E11: Marzec
A12: 30-03-2013 | B12: 7.21 | E12: Marzec
A13: 5-04-2013 | B13: 9.9 | D13: 5:37 min/km | E13: Kwiecień

Sheet thetot
A1: Data biegu | B1: Przebiegnięte km | C1: Czas biegu | D1: Średnia prędkość | E1: Miesiąc | F1: Dni tygodnia | G1: Łącznie przebiegniętych kilometrów | H1: z 6259,6 km
A2: 26-03-2013 | B2: 4 | E2: Marzec | F2: Poniedziałek | G2: =SUM(B2:B19) -> 9.7
A3: 30-03-2013 | B3: 2.5 | E3: Marzec | F3: Wtorek
A4: 1-04-2013 | B4: 3.2 | E4: Kwiecień | F4: Środa
F5: Czwartek
F6: Piątek
F7: Sobota
F8: Niedziela

Sheet tiksiu
A1: Data biegu | B1: Przebiegnięte km | C1: Czas biegu | D1: Średnia prędkość | E1: Miesiąc | F1: Dni tygodnia | G1: Łącznie przebiegniętych kilometrów | H1: z 6259,6 km
A2: 5-03-2013 | B2: 4.4 | E2: Marzec | F2: Poniedziałek | G2: =SUM(B2:B27) -> 43.31
A3: 7-03-2013 | B3: 4.13 | E3: Marzec | F3: Wtorek
A4: 9-03-2013 | B4: 4.19 | E4: Marzec | F4: Środa
A5: 11-03-2013 | B5: 4.18 | E5: Marzec | F5: Czwartek
A6: 13-03-2013 | B6: 4.21 | E6: Marzec | F6: Piątek
A7: 16-03-2013 | B7: 4.57 | E7: Marzec | F7: Sobota
A8: 18-03-2013 | B8: 4.36 | E8: Marzec | F8: Niedziela
A9: 20-03-2013 | B9: 4.52 | E9: Marzec
A10: 29-03-2013 | B10: 4.38 | E10: Marzec
A11: 3-04-2013 | B11: 4.37 | E11: Kwiecień

Sheet tomek860827
A1: Data biegu | B1: Przebiegnięte km | C1: Czas biegu | D1: Średnia prędkość | E1: Miesiąc | F1: Dni tygodnia | G1: Łącznie przebiegniętych kilometrów | H1: z 6259,6 km
A2: 25-03-2013 | B2: 5.02 | C2: 26m:00s | D2: 5:11 min/km | E2: Marzec | F2: Poniedziałek | G2: =SUM(B2:B22) -> 18.08
A3: 3-04-2013 | B3: 6.03 | C3: 29m:14s | D3: 4:51 min/km | E3: Kwiecień | F3: Wtorek
A4: 5-04-2013 | B4: 7.03 | C4: 34m:54s | D4: 4:58 min/km | E4: Kwiecień | F4: Środa
F5: Czwartek
F6: Piątek
F7: Sobota
F8: Niedziela

Sheet tomy86
A1: Data biegu | B1: Przebiegnięte km | C1: Czas biegu | D1: Średnia prędkość | E1: Miesiąc | F1: Dni tygodnia | G1: Łącznie przebiegniętych kilometrów | H1: z 6259,6 km
A2: 27-02-2013 | B2: 5 | C2: 21m:42s | E2: Luty | F2: Poniedziałek | G2: =SUM(B2:B23) -> 114.33
A3: 1-03-2013 | B3: 5.14 | C3: 22m:32s | E3: Marzec | F3: Wtorek
A4: 5-03-2013 | B4: 8.17 | C4: 37m:28s | E4: Marzec | F4: Środa
A5: 7-03-2013 | B5: 9 | C5: 43m:55s | E5: Marzec | F5: Czwartek
A6: 11-03-2013 | B6: 5 | C6: 22m:12s | D6: 4:26 min/km | E6: Marzec | F6: Piątek
A7: 14-03-2013 | B7: 11.02 | C7: 50m:46s | D7: 4:32 min/km | E7: Marzec | F7: Sobota
A8: 20-03-2013 | B8: 11.18 | C8: 49m:49s | D8: 4:27 min/km | E8: Marzec | F8: Niedziela
A9: 22-03-2013 | B9: 10.89 | C9: 51m:47s | D9: 4:45 min/km | E9: Marzec
A10: 26-03-2013 | B10: 15.34 | C10: 1g:10m:41s | D10: 4:37 min/km | E10: Marzec
A11: 29-03-2013 | B11: 11.16 | C11: 49m:48s | D11: 4:28 min/km | E11: Marzec
A12: 2-04-2013 | B12: 11.21 | C12: 49m:35s | D12: 4:25 min/km | E12: Kwiecień
A13: 5-04-2013 | B13: 11.22 | C13: 51m:54s | D13: 4:38 min/km | E13: Kwiecień

Sheet turbosowa
A1: Data biegu | B1: Przebiegnięte km | C1: Czas biegu | D1: Średnia prędkość | E1: Miesiąc | F1: Dni tygodnia | G1: Łącznie przebiegniętych kilometrów | H1: z 6259,6 km
A2: 4-03-2013 | B2: 3.42 | C2: 28m:18s | D2: 8:17 min/km | E2: Marzec | F2: Poniedziałek | G2: =SUM(B2:B28) -> 89.14
A3: 6-03-2013 | B3: 3.67 | C3: 17m:45s | D3: 6:25 min/km | E3: Marzec | F3: Wtorek
A4: 8-03-2013 | B4: 4.44 | C4: 34m:55s | D4: 7:52 min/km | E4: Marzec | F4: Środa
A5: 9-03-2013 | B5: 5.05 | C5: 39m:38s | D5: 7:50 min/km | E5: Marzec | F5: Czwartek
A6: 12-03-2013 | B6: 5.32 | C6: 42m:06s | D6: 7:55 min/km | E6: Marzec | F6: Piątek
A7: 13-03-2013 | B7: 5.6 | C7: 44m:20s | D7: 7:55 min/km | E7: Marzec | F7: Sobota
A8: 16-03-2013 | B8: 5 | E8: Marzec | F8: Niedziela
A9: 17-03-2013 | B9: 7.67 | C9: 1g:10m:30s | D9: 9:11 min/km | E9: Marzec
A10: 18-03-2013 | B10: 4.83 | C10: 41m:00s | D10: 8:30 min/km | E10: Marzec
A11: 20-03-2013 | B11: 7 | C11: 50m:41s | D11: 9:02 min/km | E11: Marzec
A12: 23-03-2013 | B12: 8.62 | C12: 1g:05m:10s | D12: 7:50 min/km | E12: Marzec
A13: 24-03-2013 | B13: 7 | C13: 57m:20s | D13: 8:50 min/km | E13: Marzec
A14: 26-03-2013 | B14: 3.83 | C14: 29m:20s | D14: 7:39 min/km | E14: Marzec
A15: 30-03-2013 | B15: 12 | C15: 1g:43m:36s | D15: 9:26 min/km | E15: Marzec
A16: 1-04-2013 | B16: 5.69 | C16: 45m:38s | D16: 8:02 min/km | E16: Kwiecień

Sheet Queltas
A1: Data biegu | B1: Przebiegnięte km | C1: Czas biegu | D1: Średnia prędkość | E1: Miesiąc | F1: Dni tygodnia | G1: Łącznie przebiegniętych kilometrów | H1: z 6259,6 km
A2: 27-03-2013 | B2: 1.2 | E2: Marzec | F2: Poniedziałek | G2: =SUM(B2:B22) -> 1.2
F3: Wtorek
F4: Środa
F5: Czwartek
F6: Piątek
F7: Sobota
F8: Niedziela

Sheet Quilo
A1: Data biegu | B1: Przebiegnięte km | C1: Czas biegu | D1: Średnia prędkość | E1: Miesiąc | F1: Dni tygodnia | G1: Łącznie przebiegniętych kilometrów | H1: z 6259,6 km
A2: 4-03-2013 | B2: 9.84 | C2: 1g:06m:37s | D2: 6:46 min/km | E2: Marzec | F2: Poniedziałek | G2: =SUM(B2:B26) -> 40.13
A3: 6-03-2013 | B3: 10.01 | C3: 1g:01m:17s | D3: 6:07 min/km | E3: Marzec | F3: Wtorek
A4: 23-03-2013 | B4: 10.14 | C4: 1g:00m:15s | D4: 5:56 min/km | E4: Marzec | F4: Środa
A5: 25-03-2013 | B5: 10.14 | C5: 58m:28s | D5: 5:46 min/km | E5: Marzec | F5: Czwartek
F6: Piątek
F7: Sobota
F8: Niedziela

Sheet ursua
A1: Data biegu | B1: Przebiegnięte km | C1: Czas biegu | D1: Średnia prędkość | E1: Miesiąc | F1: Dni tygodnia | G1: Łącznie przebiegniętych kilometrów | H1: z 6259,6 km
A2: 22-03-2013 | B2: 2.51 | E2: Marzec | F2: Poniedziałek | G2: =SUM(B2:B27) -> 53.72
A3: 24-03-2013 | B3: 6.03 | C3: 32m:31s | D3: 5:23 min/km | E3: Marzec | F3: Wtorek
A4: 26-03-2013 | B4: 8 | E4: Marzec | F4: Środa
A5: 29-03-2013 | B5: 7 | E5: Marzec | F5: Czwartek
A6: 30-03-2013 | B6: 10.15 | E6: Marzec | F6: Piątek
A7: 31-03-2013 | B7: 5 | E7: Marzec | F7: Sobota
A8: 1-04-2013 | B8: 6.03 | C8: 33m:29s | D8: 5:33 min/km | E8: Kwiecień | F8: Niedziela
A9: 3-04-2013 | B9: 4 | E9: Kwiecień
A10: 5-04-2013 | B10: 5 | C10: 25m:41s | D10: 5:08 min/km | E10: Kwiecień

Sheet Vegetassj5
A1: Data biegu | B1: Przebiegnięte km | C1: Czas biegu | D1: Średnia prędkość | E1: Miesiąc | F1: Dni tygodnia | G1: Łącznie przebiegniętych kilometrów | H1: z 6259,6 km
A2: 26-02-2013 | B2: 6.7 | E2: Luty | F2: Poniedziałek | G2: =SUM(B2:B24) -> 6.7
F3: Wtorek
F4: Środa
F5: Czwartek
F6: Piątek
F7: Sobota
F8: Niedziela

Sheet ViZ_P
A1: Data biegu | B1: Przebiegnięte km | C1: Czas biegu | D1: Średnia prędkość | E1: Miesiąc | F1: Dni tygodnia | G1: Łącznie przebiegniętych kilometrów | H1: z 6259,6 km
A2: 10-03-2013 | B2: 5.01 | C2: 41m:17s | D2: 8:14 min/km | E2: Marzec | F2: Poniedziałek | G2: =SUM(B2:B15) -> 10.36
A3: 17-03-2013 | B3: 5.35 | C3: 44m:28s | D3: 8:18 min/km | E3: Marzec | F3: Wtorek
F4: Środa
F5: Czwartek
F6: Piątek
F7: Sobota
F8: Niedziela

Sheet _w3s
A1: Data biegu | B1: Przebiegnięte km | C1: Czas biegu | D1: Średnia prędkość | E1: Miesiąc | F1: Dni tygodnia | G1: Łącznie przebiegniętych kilometrów | H1: z 6259,6 km
A2: 2-03-2013 | B2: 7.43 | C2: 40m:41s | D2: 5:28 min/km | E2: Marzec | F2: Poniedziałek | G2: =SUM(B2:B26) -> 116.71
A3: 3-03-2013 | B3: 10.06 | C3: 53m:30s | D3: 5:19 min/km | E3: Marzec | F3: Wtorek
A4: 10-03-2013 | B4: 11.72 | C4: 1g:00m:14s | D4: 5:08 min/km | E4: Marzec | F4: Środa
A5: 16-03-2013 | B5: 11.41 | C5: 55m:59s | D5: 4:54 min/km | E5: Marzec | F5: Czwartek
A6: 18-03-2013 | B6: 13.03 | C6: 1g:05m:31 | D6: 5:02 min/km | E6: Marzec | F6: Piątek
A7: 20-03-2013 | B7: 13.02 | C7: 1g:04m:14s | D7: 4:56 min/km | E7: Marzec | F7: Sobota
A8: 24-03-2013 | B8: 2.83 | C8: 12m:10s | D8: 4:18 min/km | E8: Marzec | F8: Niedziela
A9: 26-03-2013 | B9: 6.66 | C9: 32m:06s | D9: 4:49 min/km | E9: Marzec
A10: 28-03-2013 | B10: 5.18 | C10: 24m:58s | D10: 4:49 min/km | E10: Marzec
A11: 31-03-2013 | B11: 14.12 | C11: 1g:10m:43s | D11: 5:00 min/km | E11: Marzec
A12: 1-04-2013 | B12: 8.16 | C12: 39m:05s | D12: 4:47 min/km | E12: Kwiecień
A13: 3-04-2013 | B13: 7.08 | C13: 34m:18s | D13: 4:51 min/km | E13: Kwiecień
A14: 4-04-2013 | B14: 6.01 | C14: 28m:36s | D14: 4:45 min/km | E14: Kwiecień

Sheet werniol
A1: Data biegu | B1: Przebiegnięte km | C1: Czas biegu | D1: Średnia prędkość | E1: Miesiąc | F1: Dni tygodnia | G1: Łącznie przebiegniętych kilometrów | H1: z 6259,6 km
A2: 1-03-2013 | B2: 7.01 | C2: 34m:05s | D2: 4:52 min/km | E2: Marzec | F2: Poniedziałek | G2: =SUM(B2:B24) -> 85.08
A3: 2-03-2013 | B3: 10.38 | C3: 53m:22s | D3: 5:09 min/km | E3: Marzec | F3: Wtorek
A4: 5-03-2013 | B4: 10.17 | C4: 52m:49s | D4: 5:12 min/km | E4: Marzec | F4: Środa
A5: 7-03-2013 | B5: 10.15 | C5: 54m:09s | D5: 5:20 min/km | E5: Marzec | F5: Czwartek
A6: 9-03-2013 | B6: 10.02 | C6: 51m:42s | D6: 5:10 min/km | E6: Marzec | F6: Piątek
A7: 11-03-2013 | B7: 10.2 | C7: 50m:56s | D7: 6:44 min/km | E7: Marzec | F7: Sobota
A8: 14-03-2013 | B8: 10.2 | E8: Marzec | F8: Niedziela
A9: 17-03-2013 | B9: 8.54 | C9: 43m:07s | D9: 5:03 min/km | E9: Marzec
A10: 20-03-2013 | B10: 8.41 | C10: 41m:06s | D10: 4:53 min/km | E10: Marzec

Sheet WesolyMorswin
A1: Data biegu | B1: Przebiegnięte km | C1: Czas biegu | D1: Średnia prędkość | E1: Miesiąc | F1: Dni tygodnia | G1: Łącznie przebiegniętych kilometrów | H1: z 6259,6 km
A2: 27-03-2013 | B2: 60.6 | E2: Marzec | F2: Poniedziałek | G2: =SUM(B2:B16) -> 74.29
A3: 26,03-2013 | B3: 2.07 | E3: Marzec
A4: 30-03-2013 | B4: 6.62 | E4: Marzec | F4: Wtorek
A5: 6-04-2013 | B5: 5 | E5: Kwiecień | F5: Środa
F6: Czwartek
F7: Piątek
F8: Sobota
F9: Niedziela

Sheet winnux
A1: Data biegu | B1: Przebiegnięte km | C1: Czas biegu | D1: Średnia prędkość | E1: Miesiąc | F1: Dni tygodnia | G1: Łącznie przebiegniętych kilometrów | H1: z 6259,6 km
A2: 5-04-2013 | B2: 1.2 | E2: Kwiecień | F2: Poniedziałek | G2: =SUM(B2:B25) -> 1.2
F3: Wtorek
F4: Środa
F5: Czwartek
F6: Piątek
F7: Sobota
F8: Niedziela

Sheet wojjaskula
A1: Data biegu | B1: Przebiegnięte km | C1: Czas biegu | D1: Średnia prędkość | E1: Miesiąc | F1: Dni tygodnia | G1: Łącznie przebiegniętych kilometrów | H1: z 6259,6 km
A2: 5-03-2013 | B2: 2.5 | E2: Marzec | F2: Poniedziałek | G2: =SUM(B2:B23) -> 2.5
F3: Wtorek
F4: Środa
F5: Czwartek
F6: Piątek
F7: Sobota
F8: Niedziela

Sheet WujekWacek
A1: Data biegu | B1: Przebiegnięte km | C1: Czas biegu | D1: Średnia prędkość | E1: Miesiąc | F1: Dni tygodnia | G1: Łącznie przebiegniętych kilometrów | H1: z 6259,6 km
A2: 27-02-2013 | B2: 6.5 | C2: 35m:18s | D2: 8:41 min/mi | E2: Luty | F2: Poniedziałek | G2: =SUM(B2:B23) -> 228.9
A3: 28-02-2013 | B3: 12.3 | C3: 1g:05m:14s | D3: 8:32 min/mi | E3: Luty | F3: Wtorek
A4: 1-03-2013 | B4: 6.4 | C4: 35m:51s | D4: 8:58 min/mi | E4: Marzec | F4: Środa
A5: 2-03-2013 | B5: 32.5 | C5: 3g:17m:47s | D5: 9:46 min/mi | E5: Marzec | F5: Czwartek
A6: 5-03-2013 | B6: 7.9 | C6: 44m:10s | D6: 8:56 min/mi | E6: Marzec | F6: Piątek
A7: 6-03-2013 | B7: 14.1 | C7: 1g:15m:00s | D7: 8:32 min/mi | E7: Marzec | F7: Sobota
A8: 7-03-2013 | B8: 6.4 | C8: 35m:54s | D8: 9:05 min/mi | E8: Marzec | F8: Niedziela
A9: 9-03-2013 | B9: 11.1 | C9: 1g:17m:35s | D9: 11:15 min/mi | E9: Marzec
A10: 13-03-2013 | B10: 6.5 | C10: 32m:30s | D10: 8:02 min/mi | E10: Marzec
A11: 20-03-2013 | B11: 7.8 | C11: 41m:10s | D11: 8:28 min/mi | E11: Marzec
A12: 21-03-2013 | B12: 14.3 | C12: 1g:17m:01s | D12: 8:39 min/mi | E12: Marzec
A13: 21-03-2013 | B13: 9.3 | C13: 47m:42s | D13: 8:14 min/mi | E13: Marzec
A14: 23-03-2013 | B14: 28.2 | C14: 2g:48m:28s | D14: 9:24 min/mi | E14: Marzec
A15: 27-03-2013 | B15: 8.6 | C15: 46m:18s | D15: 8:37 min/mi | E15: Marzec
A16: 1-04-2013 | B16: 21.7 | C16: 2g:00m:42s | D16: 8:57 min/mi | E16: Kwiecień
A17: 2-04-2013 | B17: 8.6 | C17: 47m:04s | D17: 8:49 min/mi | E17: Kwiecień
A18: 3-04-2013 | B18: 17.1 | C18: 1g:39m:07s | D18: 9:19 min/mi | E18: Kwiecień
A19: 4-04-2013 | B19: 9.6 | C19: 52m:36s | D19: 8:46 min/mi | E19: Kwiecień

Sheet wwojtus2304
A1: Data biegu | B1: Przebiegnięte km | C1: Czas biegu | D1: Średnia prędkość | E1: Miesiąc | F1: Dni tygodnia | G1: Łącznie przebiegniętych kilometrów | H1: z 6259,6 km
A2: 27-02-2013 | B2: 5.35 | E2: Luty | F2: Poniedziałek | G2: =SUM(B2:B24) -> 71.79
A3: 1-03-2013 | B3: 5.35 | E3: Marzec | F3: Wtorek
A4: 3-03-2013 | B4: 4.7 | E4: Marzec | F4: Środa
A5: 6-03-2013 | B5: 5.35 | E5: Marzec | F5: Czwartek
A6: 9-03-2013 | B6: 6.49 | E6: Marzec | F6: Piątek
A7: 11-03-2013 | B7: 7.22 | D7: 5:37 min/km | E7: Marzec | F7: Sobota
A8: 15-03-2013 | B8: 3.59 | E8: Marzec | F8: Niedziela
A9: 17-03-2013 | B9: 8.32 | D9: 5:39 min/km | E9: Marzec
A10: 19-03-2013 | B10: 5.35 | D10: 5:32 min/km | E10: Marzec
A11: 25-03-2013 | B11: 5.91 | D11: 5:32 min/km | E11: Marzec
A12: 28-03-2013 | B12: 2.8 | D12: 5:29 min/km | E12: Marzec
A13: 3-04-2013 | B13: 5.38 | D13: 5:41 min/km | E13: Kwiecień
A14: 5-04-2013 | B14: 5.98 | D14: 5:36 min/km | E14: Kwiecień

Sheet xim
A1: Data biegu | B1: Przebiegnięte km | C1: Czas biegu | D1: Średnia prędkość | E1: Miesiąc | F1: Dni tygodnia | G1: Łącznie przebiegniętych kilometrów | H1: z 6259,6 km
A2: 23-03-2013 | B2: 2.05 | E2: Marzec | F2: Poniedziałek | G2: =SUM(B2:B19) -> 2.05
F3: Wtorek
F4: Środa
F5: Czwartek
F6: Piątek
F7: Sobota
F8: Niedziela

Sheet yawor
A1: Data biegu | B1: Przebiegnięte km | C1: Czas biegu | D1: Średnia prędkość | E1: Miesiąc | F1: Dni tygodnia | G1: Łącznie przebiegniętych kilometrów | H1: z 6259,6 km
A2: 26-03-2013 | B2: 3.58 | E2: Marzec | F2: Poniedziałek | G2: =SUM(B2:B18) -> 9.89
A3: 1-04-2013 | B3: 3.22 | E3: Kwiecień | F3: Wtorek
A4: 4-04-2013 | B4: 3.09 | E4: Kwiecień | F4: Środa
F5: Czwartek
F6: Piątek
F7: Sobota
F8: Niedziela

Sheet zacietrzewiony
A1: Data biegu | B1: Przebiegnięte km | C1: Czas biegu | D1: Średnia prędkość | E1: Miesiąc | F1: Dni tygodnia | G1: Łącznie przebiegniętych kilometrów | H1: z 6259,6 km
A2: 27-02-2013 | B2: 10 | E2: Luty | F2: Poniedziałek | G2: =SUM(B2:B21) -> 127.88
A3: 4-03-2013 | B3: 14.37 | E3: Marzec | F3: Wtorek
A4: 5-03-2013 | B4: 8 | E4: Marzec | F4: Środa
A5: 6-03-2013 | B5: 14.2 | E5: Marzec | F5: Czwartek
A6: 7-03-2013 | B6: 4 | E6: Marzec | F6: Piątek
A7: 8-03-2013 | B7: 14.91 | E7: Marzec | F7: Sobota
A8: 11-03-2013 | B8: 7.5 | E8: Marzec | F8: Niedziela
A9: 12-03-2013 | B9: 7.5 | E9: Marzec
A10: 18-03-2013 | B10: 10 | E10: Marzec
A11: 19-03-2013 | B11: 6 | E11: Marzec
A12: 24-03-2013 | B12: 21.01 | E12: Marzec
A13: 4-04-2013 | B13: 7.5 | E13: Kwiecień
A14: 5-04-2013 | B14: 2.89 | E14: Kwiecień

Sheet zepsutyzachod
A1: Data biegu | B1: Przebiegnięte km | C1: Czas biegu | D1: Średnia prędkość | E1: Miesiąc | F1: Dni tygodnia | G1: Łącznie przebiegniętych kilometrów | H1: z 6259,6 km
A2: 28-02-2013 | B2: 7.01 | E2: Luty | F2: Poniedziałek | G2: =SUM(B2:B27) -> 56.44
A3: 5-03-2013 | B3: 3 | E3: Marzec | F3: Wtorek
A4: 13-03-2013 | B4: 5.28 | E4: Marzec | F4: Środa
A5: 17-03-2013 | B5: 7 | D5: 5:40 min/km | E5: Marzec | F5: Czwartek
A6: 20-03-2013 | B6: 7.72 | E6: Marzec | F6: Piątek
A7: 26-03-2013 | B7: 5.23 | E7: Marzec | F7: Sobota
A8: 29-03-2013 | B8: 5 | E8: Marzec | F8: Niedziela
A9: 1-04-2013 | B9: 10 | E9: Kwiecień
A10: 3-04-2013 | B10: 6.2 | E10: Kwiecień

Sheet zioom
A1: Data biegu | B1: Przebiegnięte km | C1: Czas biegu | D1: Średnia prędkość | E1: Miesiąc | F1: Dni tygodnia | G1: Łącznie przebiegniętych kilometrów | H1: z 6259,6 km
A2: 27-02-2013 | B2: 2.13 | E2: Luty | F2: Poniedziałek | G2: =SUM(B2:B17) -> 12.66
A3: 2-03-2013 | B3: 2.13 | E3: Marzec | F3: Wtorek
A4: 6-03-2013 | B4: 2.83 | E4: Marzec | F4: Środa
A5: 28-03-2013 | B5: 2.2 | E5: Marzec | F5: Czwartek
A6: 3-04-2013 | B6: 3.37 | E6: Kwiecień | F6: Piątek
F7: Sobota
F8: Niedziela

Sheet Zlowrogi_Opos
A1: Data biegu | B1: Przebiegnięte km | C1: Czas biegu | D1: Średnia prędkość | E1: Miesiąc | F1: Dni tygodnia | G1: Łącznie przebiegniętych kilometrów | H1: z 6259,6 km
A2: 27-02-2013 | B2: 5 | E2: Luty | F2: Poniedziałek | G2: =SUM(B2:B26) -> 72.6
A3: 4-03-2013 | B3: 12 | E3: Marzec | F3: Wtorek
A4: 5-03-2013 | B4: 12 | E4: Marzec | F4: Środa
A5: 9-03-2013 | B5: 14.6 | C5: 1g:19m:07s | D5: 5:25 min/km | E5: Marzec | F5: Czwartek
A6: 10-03-2013 | B6: 3 | E6: Marzec | F6: Piątek
A7: 17-03-2013 | B7: 4 | E7: Marzec | F7: Sobota
A8: 31-03-2013 | B8: 16 | E8: Marzec | F8: Niedziela
A9: 2-04-2013 | B9: 6 | E9: Kwiecień

Sheet Szablon
A1: Data biegu | B1: Przebiegnięte km | C1: Czas biegu | D1: Średnia prędkość | E1: Miesiąc | F1: Dni tygodnia | G1: Łącznie przebiegniętych kilometrów | H1: z 6259,6 km
F2: Poniedziałek
F3: Wtorek
F4: Środa
F5: Czwartek
F6: Piątek
F7: Sobota
F8: Niedziela

Sheet Razem
A1: Nick biegasza | B1: Przebiegnięte kilometry | C1: Łącznie do tej pory przebiegnięte km | G1: Zostało
A2: JokerLine | B2: =INDIRECT(""&$A2&"!G2") -> 297.85 | C2: =SUM(B2:B144) -> 6260.29 | D2: z | E2: 6259.6 | F2: km | G2: =E2-C2 -> -0.69 | H2: km
A3: peradon | B3: 294.16
A4: mizaj | B4: 251.21
A5: WujekWacek | B5: 228.9
A6: mani3kxc | B6: 201.13
A7: Elveen | B7: 185.92
A8: frizik | B8: 173.12
A9: kamil89qwerty | B9: 170
A10: hqvkamil | B10: 169.04
A11: Lsrd | B11: 154.34
A12: zacietrzewiony | B12: 127.88
A13: _w3s | B13: 116.71
A14: dimer | B14: 116.21
A15: tomy86 | B15: 114.33
A16: Splot | B16: 110.22
A17: Schwarz_Charakter | B17: 107.07
A18: bartov | B18: 106.5
A19: Meffx | B19: 101.42
A20: andrzej194 | B20: 93.88
A21: Faraleith | B21: 91.5
A22: teryuu | B22: 89.66
A23: turbosowa | B23: 89.14
A24: Takumi | B24: 85.97
A25: werniol | B25: 85.08
A26: lukaszwasyl | B26: 82.71
A27: Masterczulki | B27: 82.37
A28: PierwszyOstatniraz | B28: 80.59
A29: kontra | B29: 76.94
A30: godfath3r | B30: 75.86
A31: Kuba_prezes | B31: 75.26
A32: WesolyMorswin | B32: 74.29
A33: Loynis | B33: 74.09
A34: Zlowrogi_Opos | B34: =INDIRECT(""&$A34&"!G2") -> 72.6
A35: wwojtus2304 | B35: 71.79
A36: _K4milk | B36: 71.41
A37: ciepol | B37: 66
A38: goomowy | B38: 60.9
A39: maciao | B39: 57.6
A40: zepsutyzachod | B40: 56.44
A41: piasek43 | B41: 54.7
A42: ursua | B42: 53.72
A43: sayane | B43: 48.74
A44: Strzalka | B44: 47.52
A45: paprocyniok | B45: 45.33
A46: necropoleis | B46: 43.67
A47: mocher_kg | B47: 43.34
A48: tiksiu | B48: 43.31
A49: dadzbog | B49: 43.21
A50: Quilo | B50: 40.13
A51: sztukamasazu | B51: 38.8
A52: GrabkaMan | B52: 38.4
A53: Ogoor | B53: 37.38
A54: Gangrel | B54: 36.22
A55: Rubens | B55: 35.81
A56: marekq | B56: 35.1
A57: maslan63 | B57: 33.95
A58: karvon | B58: 32.11
A59: moss4d | B59: 30
A60: izzardPL | B60: 29.99
A61: SiekYersky | B61: 28.32
A62: Sordi | B62: 26.65
A63: iotochodzi | B63: 26.51
A64: manieq88 | B64: 25.49
A65: ericcartman | B65: 24
A66: fisti | B66: =INDIRECT(""&$A66&"!G2") -> 21.75
A67: Gigi_ | B67: 21.6
A68: pawlakppp | B68: 20.75
A69: Caroo | B69: 20.53
A70: Kresowiak | B70: 20.28
A71: rexio | B71: 19.78
A72: Dariel | B72: 19.24
A73: tomek860827 | B73: 18.08
A74: Patres | B74: 17.6
A75: krzysiulek | B75: 16.3
A76: Solitary_Man | B76: 16.29
A77: Demand | B77: 16.2
A78: drain_pipes | B78: 14.99
A79: Gadzinski | B79: 14.68
A80: copol1 | B80: 14.4
A81: m_pietrzak | B81: 14.29
A82: Skurwozaur | B82: 13.65
A83: Nered | B83: 13.42
A84: Cybe | B84: 13.22
A85: Deykun | B85: 13.21
A86: zioom | B86: 12.66
A87: madev | B87: 12.24
A88: Smookie | B88: 12
A89: stefan_pompka | B89: 11.71
A90: ViZ_P | B90: 10.36
A91: gugas | B91: 10.1
A92: Madius | B92: 10.1
A93: Janodemon | B93: 10
A94: Tapirro | B94: 9.95
A95: yawor | B95: 9.89
A96: thetot | B96: 9.7
A97: margottst | B97: 9.3
A98: Mario_lgw | B98: =INDIRECT(""&$A98&"!G2") -> 8.81
A99: NaNiczymSieNieZnam | B99: 8.8
A100: adakox | B100: 8.74
A101: Scorpio412 | B101: 8.2
A102: mBartek89 | B102: 8
A103: emdey | B103: 7.14
A104: Pyrakus | B104: 7
A105: ppj | B105: 6.86
A106: dptd | B106: 6.79
A107: Vegetassj5 | B107: 6.7
A108: stepBYstep | B108: 6.15
A109: jestemrowerem | B109: 6.01
A110: heeidi | B110: 6
A111: Konalio | B111: 6
A112: noway | B112: 6
A113: korpiel | B113: 5.9
A114: DuDru | B114: 5.67
A115: Jumper | B115: 5.6
A116: poprostuMarcin | B116: 5.48
A117: evenstar | B117: 5.4
A118: mechaniczny_kurak | B118: 5.3
A119: paweel | B119: 5.2
A120: michal__q | B120: 5
A121: nerqus | B121: 4.9
A122: korzenny | B122: 4.5
A123: Mariusz_Drugi | B123: 3.94
A124: guarani | B124: 3.9
A125: jaras2 | B125: 3.63
A126: Kozzi | B126: 3.49
A127: aurevoir | B127: 3.32
A128: Guinness | B128: 3.32
A129: Markos90 | B129: 3.26
A130: mejsieq | B130: =INDIRECT(""&$A130&"!G2") -> 3.17
A131: cycki | B131: 3
A132: surma | B132: 3
A133: BeSmarter | B133: 2.8
A134: wojjaskula | B134: 2.5
A135: szuwarek_mini | B135: 2.4
A136: xim | B136: 2.05
A137: Marmite | B137: 2
A138: ktoosiu | B138: 1.2
A139: Queltas | B139: 1.2
A140: winnux | B140: 1.2
